{"text_format":"1","workbook":"xlsx","n_sheets":6,"sheets":["AER CF","AER NRs","AER lookups","AER ETL","Business & other details","7.5 EBSS"],"not_rendered":{"charts":0,"images":1,"macros":1,"external_links":3,"defined_names":418,"comments":2,"pivot_tables":0},"unopened":[],"bounds":{"document_bytes":16777216,"sheet_cells":100000,"rows_first":2000,"rows_last":500,"rows_between":2000,"halvings":0,"cell_chars":16384,"cell_head_chars":4096},"cells_cut":0,"cells_raw":0,"read":"whole","date_system":"1900"}

{"sheet":"AER CF","index":0,"n_rows":127,"n_cols":24,"rows_kept":127,"cut":false,"hidden":true,"merged":[[3,1,3,21]]}
[null,"AER CONDITIONAL FORMATTING"]
[]
[]
[null,"CONDITIONAL FORMATTING MAP"]
[null,null,null,null,null,"=INDEX(dms_CF_3.6.1, MATCH(dms_TradingName,dms_CF_TradingName))=\"Y\"","=INDEX(dms_CF_3.6.5, MATCH(dms_TradingName,dms_CF_TradingName))=\"Y\"","=INDEX(dms_CF_3.6.6, MATCH(dms_TradingName,dms_CF_TradingName))=\"Y\"","=INDEX(dms_CF_3.6.7.1, MATCH(dms_TradingName,dms_CF_TradingName))=\"Y\"","=INDEX(dms_CF_3.6.7.2, MATCH(dms_TradingName,dms_CF_TradingName))=\"Y\"","=INDEX(dms_CF_3.6.7.3, MATCH(dms_TradingName,dms_CF_TradingName))=\"Y\"","=INDEX(dms_CF_3.6.7.4, MATCH(dms_TradingName,dms_CF_TradingName))=\"Y\"","=INDEX(dms_CF_3.6.8, MATCH(dms_TradingName,dms_CF_TradingName))=\"Y\"","=INDEX(dms_CF_4.1, MATCH(dms_TradingName,dms_CF_TradingName))=\"Y\"","=INDEX(dms_CF_6.6.1, MATCH(dms_TradingName,dms_CF_TradingName))=\"Y\"","=INDEX(dms_CF_6.8, MATCH(dms_TradingName,dms_CF_TradingName))=\"Y\"","=INDEX(dms_CF_7.12, MATCH(dms_TradingName,dms_CF_TradingName))=\"Y\"","=INDEX(dms_CF_8.1_A, MATCH(dms_TradingName,dms_CF_TradingName))=\"Y\"","=INDEX(dms_CF_8.1_B, MATCH(dms_TradingName,dms_CF_TradingName))=\"Y\"","=INDEX(dms_CF_8.1_Neg, MATCH(dms_TradingName,dms_CF_TradingName))=\"Y\"","=INDEX(dms_CF_4.4.1_Neg, MATCH(dms_TradingName,dms_CF_TradingName))=\"Y\""]
[null,"dms_CF_TradingName","JurisdictionList","Sector","Segment","dms_CF_3.6.1","dms_CF_3.6.5","dms_CF_3.6.6","dms_CF_3.6.7.1","dms_CF_3.6.7.2","dms_CF_3.6.7.3","dms_CF_3.6.7.4","dms_CF_3.6.8","dms_CF_4.1","dms_CF_6.6.1","dms_CF_6.8","dms_CF_7.12","dms_CF_8.1_A","dms_CF_8.1_B","dms_CF_8.1_Neg","dms_CF_4.4.1","dms_CF_MAIFI_flag","Spare1","Spare2"]
[null,"ActewAGL Distribution","ACT","Electricity","Distribution",null,"Y",null,"Y","Y","N","Y","N","Y","N","Y","Y","N","Y","Y","N","N","N","N"]
[null,"Ausgrid","NSW","Electricity","Distribution",null,"Y",null,"N","N","N","Y","N","Y","N","Y","Y","N","Y","Y","N","N","N","N"]
[null,"AusNet (D)","Vic","Electricity","Distribution",null,"N",null,"N","N","N","N","N","Y","N","Y","N","N","N","Y","N","N","N","N"]
[null,"AusNet (T)","Vic","Electricity","Transmission",null,"N",null,"N","N","N","N","N","Y","N","Y","N","N","N","Y","N","N","N","N"]
[null,"CitiPower","Vic","Electricity","Distribution",null,"N",null,"N","N","N","N","N","Y","N","Y","N","N","N","Y","N","N","N","N"]
[null,"Directlink","Qld","Electricity","Transmission",null,"N",null,"N","N","N","N","N","Y","N","Y","N","N","Y","Y","N","N","N","N"]
[null,"ElectraNet","SA","Electricity","Transmission",null,"N",null,"N","N","N","N","N","Y","N","Y","N","N","Y","Y","N","N","N","N"]
[null,"Endeavour Energy","NSW","Electricity","Distribution",null,"Y",null,"N","N","N","Y","N","Y","N","Y","Y","N","Y","Y","Y","N","N","N"]
[null,"Energex","Qld","Electricity","Distribution",null,"Y",null,"N","N","N","N","N","Y","N","Y","Y","N","Y","Y","Y","N","N","N"]
[null,"Ergon Energy","Qld","Electricity","Distribution",null,"Y",null,"N","N","N","N","N","Y","N","Y","Y","N","Y","Y","N","N","N","N"]
[null,"Essential Energy","NSW","Electricity","Distribution",null,"Y",null,"N","N","N","Y","N","Y","N","Y","Y","N","Y","Y","N","N","N","N"]
[null,"Jemena Electricity","Vic","Electricity","Distribution",null,"N",null,"N","N","N","N","N","Y","N","Y","N","N","N","Y","N","N","N","N"]
[null,"Murraylink","SA","Electricity","Transmission",null,"N",null,"N","N","N","N","N","Y","N","Y","N","N","Y","Y","N","N","N","N"]
[null,"Power and Water","NT","Electricity","Distribution",null,"N",null,"N","Y","N","N","Y","Y","Y","Y","Y","N","Y","Y","N","N","N","N"]
[null,"Powercor Australia","Vic","Electricity","Distribution",null,"N",null,"N","N","N","N","N","Y","N","Y","N","N","N","Y","N","N","N","N"]
[null,"Powerlink","Qld","Electricity","Transmission",null,"N",null,"N","N","N","N","N","Y","N","Y","N","N","Y","Y","N","N","N","N"]
[null,"SA Power Networks","SA","Electricity","Distribution",null,"Y",null,"N","N","N","N","N","Y","N","Y","Y","Y","Y","N","N","N","N","N"]
[null,"TasNetworks (D)","Tas","Electricity","Distribution",null,"Y",null,"N","N","N","N","N","Y","N","Y","Y","N","Y","Y","N","N","N","N"]
[null,"TasNetworks (T)","Tas","Electricity","Transmission",null,"N",null,"N","N","N","N","N","Y","N","Y","N","N","Y","Y","N","N","N","N"]
[null,"TransGrid","NSW","Electricity","Transmission",null,"N",null,"N","N","N","N","N","Y","N","Y","N","N","Y","Y","N","N","N","N"]
[null,"United Energy","Vic","Electricity","Distribution",null,"N",null,"N","N","N","N","N","Y","N","Y","N","N","N","Y","N","N","N","N"]
[]
[]
[null,"Confidential"]
[null,"Amended"]
[]
[null,"Worksheet 6.2 STPIS reliability"]
[null,"Formula",null,null,null,"Applied to:"]
[]
[null,"=INDEX(dms_CBD_flag,MATCH(dms_TradingName,dms_TradingName_List))=\"NO\"",null,null,null,"$D$11,$D$17,$D$23,$D$33,$D$39,$D$45,$D$55,$D$61,$D$67,$D$77,$D$83,$D$89"]
[null,"=INDEX(dms_Urban_flag,MATCH(dms_TradingName,dms_TradingName_List))=\"NO\"",null,null,null,"$D$12,$D$18,$D$24,$D$56,$D$62,$D$78,$D$68,$D$84"]
[null,"=INDEX(dms_ShortRural_flag,MATCH(dms_TradingName,dms_TradingName_List))=\"NO\"",null,null,null,"$D$13,$D$19,$D$25,$D$57,$D$63,$D$69,$D$79,$D$85"]
[null,"=INDEX(dms_LongRural_flag,MATCH(dms_TradingName,dms_TradingName_List))=\"NO\"",null,null,null,"$D$14,$D$20,$D$26,$D$58,$D$64,$D$65,$D$70,$D$71,$D$80,$D$86"]
[null,"=INDEX(dms_FeederType_5_flag,MATCH(dms_TradingName,dms_TradingName_List))=\"NO\"",null,null,null,"$D$87,$D$81,$D$71,$D$65,$D$59,$D$49,$D$43,$D$37,$D$21,$D$15"]
[null,"=dms_MAIFI_Flag=\"No\"",null,null,null,"$D$55:$D$72"]
[]
[]
[null,"Business & other details"]
[null,"=(INDEX(dms_Model_Span,MATCH(dms_Model,dms_Model_List))>1)"]
[null,"=(INDEX(dms_Model_Span,MATCH(dms_Model,dms_Model_List))=1)"]
[]
[]
[null,"STYLES IN USE"]
[null,null,"dms_1"]
[null,null,"dms_2"]
[null,null,"dms_3"]
[null,null,"dms_4"]
[null,null,"dms_5"]
[null,null,"dms_NUM"]
[null,null,"dms_NUM%"]
[null,null,"dms_Row_Locked"]
[null,null,"dms_Row1"]
[null,null,"dms_Row2"]
[null,null,"dms_T1"]
[null,null,"dms_T2"]
[null,null,"dms_BH"]
[null,null,"dms_BY1"]
[null,null,"dms_BY2"]
[null,null,"dms_GH"]
[null,null,"dms_GY1"]
[null,null,"dms_GY2"]
[]
[]
[]
[]
[]
[]
[]
[]
[]
[]
[]
[]
[]
[]
[]
[]
[]
[]
[]
[]
[]
[]
[]
[]
[]
[]
[]
[]
[]
[]
[]
[]
[]
[]
[]
[]
[]
[]
[]
[]
[]
[]
[]
[]
[]
[]
[]
[]
[]
[]
[]
[]
[]
[]
[]
[]
[]
[]
[null,null,"0"]
[null,null,{"$f":"IFERROR(IF(dms_Model=\"ARR\",(MAX(0,dms_0608_LastRow-dms_0608_OffsetRows)),\"not an ARR\"),\"0\")","v":"not an ARR"}]

{"sheet":"AER NRs","index":1,"n_rows":226,"n_cols":15,"rows_kept":226,"cut":false,"hidden":true,"merged":[[133,1,148,1],[4,1,26,1],[30,1,53,1],[30,11,30,12],[31,11,33,11],[34,11,38,11],[42,11,43,11],[63,1,76,1],[82,1,95,1],[98,1,105,1],[108,1,113,1],[116,1,130,1],[197,1,198,1],[206,1,211,1],[150,1,156,1],[158,1,172,1],[174,1,175,1],[177,1,182,1],[189,1,190,1],[193,1,194,1]]}
[null,"AER NAMED RANGES"]
[]
[null,"DROP DOWN SELECTORS USED IN WORKBOOKS"]
[]
[null,"COVER SHEET","dms_DataQuality_List","dms_Confid_status_List"]
[null,null,"-- select --","-- select --"]
[null,null,"Actual","Public"]
[null,null,"Estimate","Confidential"]
[null,null,"Consolidated"]
[]
[]
[null,null,"For all files either AER or business needs to be able to specify the type of submission","For PTRM & RFM templates we must provide a choice in case they change their form of control - otherwise it is drawn from the business specific lookup table above."]
[null,null,"dms_SourceList","dms_FormControl_Choices"]
[null,null,"-- select --","Revenue cap"]
[null,null,"After appeal","Revenue yield"]
[null,null,"Draft decision","Weighted average price cap"]
[null,null,"Final decision"]
[null,null,"PTRM update 1"]
[null,null,"PTRM update 2"]
[null,null,"PTRM update 3"]
[null,null,"PTRM update 4"]
[null,null,"PTRM update 5"]
[null,null,"PTRM update 6"]
[null,null,"PTRM update 7"]
[null,null,"Regulatory proposal"]
[null,null,"Reporting"]
[null,null,"Revised regulatory proposal"]
[]
[]
[null,null,null,null,null,null,null,null,null,null,null,"This is used to create an image to insert on 6.3 STPIS sheet - not for dropdown lists."]
[null,"CA & RESET RINS \nDNSP","dms_DNSP_020301_SubstationType","dms_DNSP_020301_ProjectType","dms_DNSP_020301_ProjectTrigger","dms_DNSP_020302_ProjectType","dms_DNSP_020302_ProjectTrigger","dms_STPIS_Exclusion_List","dms_Reason_Interruption","dms_Reason_Interruption_Detailed",null,"Reason for interruption"]
[null,null,"Subtransmission substation","New substation establishment","Demand growth","New line on new route - single circuit","Demand growth","Weather","Animal","Animal impact",null,"Animal","Animal impact"]
[null,null,"Zone substation","Substation upgrade - capacity"," Voltage issues","New line on new route - dual circuit"," Voltage issues","Equipment failure","Asset failure","Animal nesting/burrowing, etc and other",null,null,"Animal nesting/burrowing, etc and other"]
[null,null,"Switching station","Substation upgrade - voltage"," Reactive power issue","New line on new route - other"," Reactive power issue","Operational error","Other","Other",null,null,"Other"]
[null,null,"Other","Other"," Fault level issues","Line rebuild over existing route - single circuit"," Fault level issues","Vegetation","Overloads","LV",null,"Asset failure","LV"]
[null,null,null,null," Safety","Line rebuild over existing route - dual circuit"," Net market benefit","Animals","Planned","Distribution substation",null,null,"Distribution substation"]
[null,null,null,null," Environment","Reconductor - Single circuit"," Safety","Third party impacts","Network business","HV",null,null,"HV"]
[null,null,null,null," Other","Reconductor - Dual circuit"," Environment","Transmission failure","Third party","Zone substation",null,null,"Zone substation"]
[null,null,null,null,null,"Reconductor - Other"," Other","Load shedding","Unknown","Subtransmission",null,null,"Subtransmission"]
[null,null,null,null,null,"Line upgrade - raising/retensoring",null,"Inter-distributor connection failure","Vegetation","insert description of 'other'",null,"Other","insert description of 'other'"]
[null,null,null,null,null,"Line upgrade - voltage upgrade",null,"Other","Weather","Network error",null,"Overloads"]
[null,null,null,null,null,"Line upgrade - capacity",null,null,"2 - STPIS Exclusion (3.3)(a)","Switching and protection error",null,"Planned"]
[null,null,null,null,null,"String spare circuit",null,null,"3 - STPIS Exclusion (3.3)(a)","Fire",null,"Network business","Network error"]
[null,null,null,null,null,"Other",null,null,"4 - STPIS Exclusion (3.3)(a)","Other",null,null,"Switching and protection error"]
[null,null,null,null,null,null,null,null,"5 - STPIS Exclusion (3.3)(a)","Dig-in",null,"Third party","Fire"]
[null,null,null,null,null,null,null,null,"6 - STPIS Exclusion (3.3)(a)","Unauthorised access",null,null,"Other"]
[null,null,null,null,null,null,null,null,"7 - STPIS Exclusion (3.3)(a)","Vehicle impact",null,null,"Dig-in"]
[null,null,null,null,null,null,null,null,null,"Unknown",null,null,"Unauthorised access"]
[null,null,null,null,null,null,null,null,null,"Blow-in/Fall-in - NSP responsibility",null,null,"Vehicle impact"]
[null,null,null,null,null,null,null,null,null,"Grow-in - NSP responsibility",null,"Unknown","Unknown"]
[null,null,null,null,null,null,null,null,null,"Blow-in/Fall-in - Other responsible party",null,"Vegetation","Blow-in/Fall-in - NSP responsibility"]
[null,null,null,null,null,null,null,null,null,"Grow-in - Other responsible party",null,null,"Grow-in - NSP responsibility"]
[null,null,null,null,null,null,null,null,null,null,null,null,"Blow-in/Fall-in - Other responsible party"]
[null,null,null,null,null,null,null,null,null,null,null,null,"Grow-in - Other responsible party"]
[null,null,null,null,null,null,null,null,null,null,null,"Weather"]
[null,null,null,null,null,null,null,null,null,null,null,"2 - STPIS Exclusion (3.3)(a)"]
[null,null,null,null,null,null,null,null,null,null,null,"3 - STPIS Exclusion (3.3)(a)"]
[null,null,null,null,null,null,null,null,null,null,null,"4 - STPIS Exclusion (3.3)(a)"]
[null,null,null,null,null,null,null,null,null,null,null,"5 - STPIS Exclusion (3.3)(a)"]
[null,null,null,null,null,null,null,null,null,null,null,"6 - STPIS Exclusion (3.3)(a)"]
[null,null,null,null,null,null,null,null,null,null,null,"7 - STPIS Exclusion (3.3)(a)"]
[]
[]
[null,"CA & RESET RINS \nTNSP ","dms_TNSP_0203_SubstationType","dms_TNSP_020301_ProjectType","dms_TNSP_020301_ProjectTrigger","dms_TNSP_020302_ProjectType","dms_TNSP_0203_ProjectTrigger"]
[null,null,"Terminal station","New substation establishment","Demand growth","New line on new route - single circuit","Demand growth"]
[null,null,"Switching station","Capacity upgrade"," Voltage issues","New line on new route - dual circuit"," Voltage issues"]
[null,null,"Transmission substation","Voltage upgrade"," Reactive power issue","New line on new route - other"," Reactive power issue"]
[null,null,"Other","Other"," Fault level issues","Line rebuild over existing route - single circuit"," Fault level issues"]
[null,null,null,null,"Net market benefit","Line rebuild over existing route - dual circuit"," Net market benefit"]
[null,null,null,null," Safety","Reconductor - Single circuit"," Safety"]
[null,null,null,null," Environment","Reconductor - Dual circuit"," Environment"]
[null,null,null,null," Other","Reconductor - Other"," Other"]
[null,null,null,null,null,"Line upgrade - raising/retensoring"]
[null,null,null,null,null,"Line upgrade - voltage upgrade"]
[null,null,null,null,null,"Line upgrade - capacity"]
[null,null,null,null,null,"String spare circuit"]
[null,null,null,null,null,"Other"]
[]
[]
[]
[null,"NAMED RANGES USED IN ETL PROCESS"]
[]
[null,"CA & RESET RINS \nDNSP ONLY","dms_020303_01_UOM","dms_020501_01_UOM","dms_020501_02_UOM","dms_020501_03_UOM","dms_020501_04_UOM","dms_020701_01_UOM","dms_020701_02_UOM","dms_020701_01_Rows","dms_040102_01_UOM","dms_040102_04_UOM"]
[null,null,"Circuit line length in km","0's","0's","0's","0's","km","km","Route line length within zone","0's","days"]
[null,null,"Circuit line length in km","0's","0's","0's","0's","0's","0's","Number of maintenance spans","0's","0's"]
[null,null,"Circuit line length in km","MVA added","MVA added","MVA added","MVA added","km","km","Total length of maintenance spans","0's","$0s"]
[null,null,"Circuit line length in km","0's","0's","0's","0's","km","km","Length of vegetation corridors","$0s","0's"]
[null,null,"Number","total spend $0s","total spend $0s","total spend $0s","total spend $0s","0's","0's","Average number of trees per maintenance span"]
[null,null,"Number","net circuit km added","net circuit km added","net circuit km added","net circuit km added","years","years","Average frequency of cutting cycle"]
[null,null,"Number","total spend $0s","total spend $0s","total spend $0s","total spend $0s"]
[null,null,null,"net circuit km added","net circuit km added","net circuit km added","net circuit km added"]
[null,null,null,"total spend $0s","total spend $0s","total spend $0s","total spend $0s"]
[null,null,null,"0's",null,"$0s"]
[null,null,null,"0's"]
[null,null,null,"0's"]
[null,null,null,"$0s"]
[]
[]
[null,"CA & RESET RINS \nTNSP ONLY","dms_020701_01_UOM"]
[null,null,"km"]
[null,null,"0's"]
[null,null,"km"]
[null,null,"0's"]
[null,null,"km"]
[null,null,"metres"]
[null,null,"years"]
[]
[]
[null,"CA & RESET RINS \nDNSP & TNSP","dms_020603_01_UOM"]
[null,null,"0's"]
[null,null,"0's"]
[null,null,"0's"]
[null,null,"0's"]
[null,null,"(per cent)"]
[]
[]
[null,"EB & RESET RINS \nDNSP ONLY","dms_030601_01_UOM","dms_030601_02_UOM","dms_030701_01_UOM","dms_030702_01_UOM","dms_030703_01_UOM"]
[null,null,"minutes/customer","minutes/customer","Customer / km","%","km"]
[null,null,"minutes/customer","minutes/customer","MWh/customer","Number of spans"]
[null,null,"interruptions/customer","interruptions/customer","kVA / customer","Number of spans"]
[null,null,"interruptions/customer","interruptions/customer",null,"Number of spans"]
[null,null,null,null,null,"Number of spans"]
[null,null,null,null,null,"Years"]
[null,null,null,null,null,"Years"]
[null,null,null,null,null,"Trees"]
[null,null,null,null,null,"Trees"]
[null,null,null,null,null,"Defects"]
[null,null,null,null,null,"Defects"]
[null,null,null,null,null,"Spans"]
[null,null,null,null,null,"km"]
[null,null,null,null,null,"Spans"]
[]
[null,null,"WHEN INSERTING COVER SHEET INTO A TNSP FILE - APPLY THESE NAMED RANGES"]
[null,"EB & RESET RINS \nTNSP ONLY","dms_030601_01_UOM",null,"dms_030701_01_UOM","dms_030702_01_UOM"]
[null,null,"%",null,"Number of spans","km"]
[null,null,"number",null,"Years","%"]
[null,null,"number",null,"Trees","km"]
[null,null,"%",null,"Defects","number"]
[null,null,"number",null,"Number of spans"]
[null,null,"number",null,"km"]
[null,null,"%",null,"km"]
[null,null,"number",null,"Number of spans"]
[null,null,"number"]
[null,null,"%"]
[null,null,"number"]
[null,null,"%"]
[null,null,"number"]
[null,null,"%"]
[null,null,"number"]
[]
[null,"EB & RESET RINS \nDNSP & TNSP","dms_EB_RAB_PIT"]
[null,null,"Beginning of year"]
[null,null,"End of year"]
[null,null,"End of year"]
[null,null,"End of year"]
[null,null,"End of year"]
[null,null,"End of year"]
[]
[null,"ARR \nDNSP ONLY","dms_030605_UOM","dms_03060703_UOM","Spare","Spare"]
[null,null,"number","number"]
[null,null,"number","number"]
[null,null,"number","number"]
[null,null,"number","number"]
[null,null,"number","(per cent)"]
[null,null,"number"]
[null,null,"number"]
[null,null,"number"]
[null,null,"number"]
[null,null,"number"]
[null,null,"number"]
[null,null,"number"]
[null,null,"(per cent)"]
[null,null,"(per cent)",""]
[]
[null,"RFM","dms_Beg","dms_Mid","dms_End"]
[null,null,"Beginning of year","Mid year","End of Year"]
[]
[null,"PTRM","dms_PTRM_RAB_PIT","dms_PTRM_TAB_PIT","DMS_Xfactor"]
[null,null,"Beginning of year","Beginning of year","x factors"]
[null,null,"End of year","End of year"]
[null,null,"End of year","End of year"]
[null,null,"End of year","End of year"]
[null,null,"End of year"]
[]
[]
[null,"STPIS & MIC NAMED RANGES "]
[]
[null,"These \"row descriptions\" are the column headings in the various templates but become row descriptions in the ETL process"]
[]
[null,"Table 6.3 sustained interruptions - row descriptions","dms_060301_CustNo_Affected_Row","dms_060301_Avg_Duration_Sustained_Int_Row","dms_060301_Effect_unplanned_SAIDI_Row","dms_060301_Effect_unplanned_SAIFI_Row"]
[null,null,"Number of customers affected by the interruption","Average duration of sustained customer interruption","Effect on unplanned SAIDI","Effect on unplanned SAIFI"]
[]
[]
[null,"Table 6.1 telephone answering - row descriptions and start date","dms_060101_Rows","dms_060102_Rows","dms_060101_StartDateTxt"]
[null,null,"Total number of calls \n(after removing excluded events)","Number of calls answered within 30 seconds \n(after excluding excluded events) ",{"$f":"dms_060701_StartDateTxt","v":"1-Jan-2014"}]
[]
[]
[null,"Table 6.8.1 - row descriptions","dms_060801_01_Rows","dms_060801_02_Rows","dms_060801_03_Rows","dms_060801_04_Rows"]
[null,null,"Number of interruptions","Duration of interruptions","Total unplanned minutes off supply","Effect on unplanned MAIFI"]
[]
[]
[null,"Table 7.9.4 - market impact component - row descriptions","dms_070904_01_Rows","without exclusions","with exclusions"]
[]
[]
[null,"These headings (Lists) are determined from the INDEX/MATCH function on the NSP selected on the Business & other details sheet"]
[]
[null,"Table 6.7.1 - daily performance data - unplanned - MAIFI  -- row descriptions and header named range values","dms_060701_Feeder_Header_Lvl4",{"$f":"INDEX(dms_FeederName_1,MATCH(dms_TradingName,dms_TradingName_List))","v":"CBD"},{"$f":"INDEX(dms_FeederName_1,MATCH(dms_TradingName,dms_TradingName_List))","v":"CBD"},{"$f":"INDEX(dms_FeederName_2,MATCH(dms_TradingName,dms_TradingName_List))","v":"Urban"},{"$f":"INDEX(dms_FeederName_2,MATCH(dms_TradingName,dms_TradingName_List))","v":"Urban"},{"$f":"INDEX(dms_FeederName_3,MATCH(dms_TradingName,dms_TradingName_List))","v":"Short rural"},{"$f":"INDEX(dms_FeederName_3,MATCH(dms_TradingName,dms_TradingName_List))","v":"Short rural"},{"$f":"INDEX(dms_FeederName_4,MATCH(dms_TradingName,dms_TradingName_List))","v":"Long rural"},{"$f":"INDEX(dms_FeederName_4,MATCH(dms_TradingName,dms_TradingName_List))","v":"Long rural"},{"$f":"IF((INDEX(dms_FeederName_5,MATCH(dms_TradingName,dms_TradingName_List))=0),\"Network\",(INDEX(dms_FeederName_5,MATCH(dms_TradingName,dms_TradingName_List))))","v":"Network"},{"$f":"IF((INDEX(dms_FeederName_5,MATCH(dms_TradingName,dms_TradingName_List))=0),\"Network\",(INDEX(dms_FeederName_5,MATCH(dms_TradingName,dms_TradingName_List))))","v":"Network"},"Network","Network"]
[]
[null,null,"dms_060701_Rows","All events","After removing excluded events","All events","After removing excluded events","All events","After removing excluded events","All events","After removing excluded events","All events","After removing excluded events","All events","After removing excluded events"]
[null,null,null,"the number of column headings changes from 10 to 12 depending on the number of feeder categories for the NSP"]
[]
[null,null,"dms_0603_FeederList",{"$f":"INDEX(dms_FeederName_1,MATCH(dms_TradingName,dms_TradingName_List))","v":"CBD"},{"$f":"INDEX(dms_FeederName_2,MATCH(dms_TradingName,dms_TradingName_List))","v":"Urban"},{"$f":"INDEX(dms_FeederName_3,MATCH(dms_TradingName,dms_TradingName_List))","v":"Short rural"},{"$f":"INDEX(dms_FeederName_4,MATCH(dms_TradingName,dms_TradingName_List))","v":"Long rural"}]
[]
[]
[null,"Use these to add to specific worksheets in existing files","Use these to add to specific worksheets in existing files"]
[]
[]
[null,"ARRs 6.7 STPIS daily performance","dms_060101_Values","dms_060102_Values","dms_060701_Values"]
[null,null,"dms_LeapYear"]
[]
[]
[null,"ARR's  6.8 STPIS exclusions","dms_060801_Event_Date","dms_060801_OutageID","dms_060801_FeederID","dms_060801_FeederClass","dms_060801_CauseID","dms_060801_01_Values","dms_060801_02_Values","dms_060801_03_Values","dms_060801_Excl_Cat","dms_060801_04_Values"]
[null,null,"dms_060801_StartCell"]
[]
[]
[null,"CA 6.3 sustained interruptions","dms_060301_Event_Date","dms_060301_Event_Time","dms_060301_AssetID","dms_060301_FeederClass","dms_060301_Reason","dms_060301_DetailedReason","dms_060301_CustNo_Affected_Values","dms_060301_Avg_Duration_Sustained_Int_Values","dms_060301_Effect_unplanned_SAIDI_Values","dms_060301_Effect_unplanned_SAIFI_Values","dms_060301_MED"]

{"sheet":"AER lookups","index":2,"n_rows":123,"n_cols":41,"rows_kept":123,"cut":false,"hidden":true,"merged":[[6,27,6,38],[8,27,8,30],[8,33,8,37],[57,1,57,4]]}
[null,"AER LOOKUP TABLES"]
[]
[null,"Data in these columns used for data validation and database purposes."]
[null,"Date last modified:","2017-01-16","added (Albury and Victora) for AGN"]
[null,null,"2016-10-17","updated TransGrid's correct legal name, corrected TasNetworks (T) to June financial year"]
[null,null,"2017-02-01","inserted Power and Water, added NRs (dms_FeederCat_1 and dms_FeederCat_2)"]
[null,null,"2017-03-03","inserted AEMO as a business",null,null,null,null,null,null,null,null,null,null,null,null,null,null,null,null,null,null,null,null,null,null,null,"FOR ELECTRICITY BUSINESSES ONLY"]
[null,null,"2018-03-28","major changes to accommodate STPIS"]
[null,null,"Template Version",5,null,null,null,null,null,null,null,null,null,null,null,null,null,null,null,null,null,null,null,null,null,null,null,"Feeder Types",null,null,null,"TasNetworks (D)","MAIFI flag","Feeder Names"]
[]
[null,null,null,null,null,null,null,null,null,null,null,null,null,null,null,null,null,null,null,null,null,null,null,null,null,null,null,"CBD","Urban","Short rural","long rural","EXTRA"]
[null,"dms_TradingName_List","dms_TradingNameFull_List","dms_ABN_List","dms_JurisdictionList","dms_Sector_List","dms_Segment_List","dms_FormControl_List","dms_RPT_List","dms_RPTMonth_List","dms_CRCPlength_List","dms_FRCPlength_List","dms_PRCPlength_List","dms_663_List","dms_DeterminationRef_List","dms_Addr1_List","dms_Addr2_List","dms_Suburb_List","dms_State_List","dms_PostCode_List","dms_PAddr1_List","dms_PAddr2_List","dms_PSuburb_List","dms_PState_List","dms_PPostCode_List","dms_ContactName1_List","dms_ContactPh1_List","dms_ContactEmail_List","dms_CBD_flag","dms_Urban_flag","dms_ShortRural_flag","dms_LongRural_flag","dms_FeederType_5_flag","dms_MAIFI_flag_List","dms_FeederName_1","dms_FeederName_2","dms_FeederName_3","dms_FeederName_4","dms_FeederName_5","dms_Public_Lighting_List","Column1"]
[null,"ActewAGL Distribution","ActewAGL Distribution",76670568688,"ACT","Electricity","Distribution","Revenue cap","Financial","June",5,5,5,5,"2014-19 Distribution Determination","40 Bunda Street",null,"CANBERRA","ACT",2600,"GPO BOX 366",null,"CANBERRA","ACT",2601,"Robert Walker","02 6248 3847","robert.walker@actewagle.com.au","NO","YES","YES","NO","NO","NO","CBD","Urban","Short rural","Long rural",null,"YES","ActewAGL Distribution"]
[null,"ActewAGL Distribution (Tx Assets)","ActewAGL Distribution (Tx Assets)",76670568688,"ACT","Electricity","Distribution","Revenue cap","Financial","June",5,5,5,5,"distribution determination","40 Bunda Street",null,"CANBERRA","ACT",2600,"GPO BOX 366",null,"CANBERRA","ACT",2601,"Robert Walker","02 6248 3847","robert.walker@actewagle.com.au","NO","YES","YES","NO","NO","NO","CBD","Urban","Short rural","Long rural",null,"NO","ActewAGL Distribution (Tx Assets)"]
[null,"ActewAGL Gas","ActewAGL Gas",76670568688,"ACT","Gas","Distribution","Weighted average price cap","Financial","June",5,5,5,"x",null,"40 Bunda Street",null,"CANBERRA","ACT",2600,"GPO BOX 366",null,"CANBERRA","ACT",2601,"Philip Deamer","02 6248 3438","GasAAReview@actewagl.com.au","NO","NO","NO","NO","NO","-","CBD","Urban","Short rural","Long rural",null,"NO","ActewAGL Gas"]
[null,"AEMO","Australian Energy Market Operator Ltd",94072010327,"Vic","Electricity","Transmission","-","Financial","March",5,5,5,"x","-","Level 22","530 Collins Street","MELBOURNE","Vic",3000,"GPO Box 2008",null,"MELBOURNE","Vic",3001,null,null,null,"NO","NO","NO","NO","NO","-","CBD","Urban","Short rural","Long rural",null,"NO","AEMO"]
[null,"AGN (Albury and Victoria)","Australian Gas Networks Limited (reporting data for Albury and Victoria)",19078551685,"Vic","Gas","Distribution","Weighted average price cap","Calendar","December",5,5,5,"x",null,"Level 6","400 King William Street","ADELAIDE","SA",5000,"PO Box 6468","Halifax Street","ADELAIDE","SA",5000,"Craig de Laine","08 8418 1129 ","craig.delaine@agn.com.au","NO","NO","NO","NO","NO","-","CBD","Urban","Short rural","Long rural",null,"NO","AGN (Albury)"]
[null,"AGN (Albury)","Australian Gas Networks Limited (reporting data for Albury)",19078551685,"Vic","Gas","Distribution","Weighted average price cap","Calendar","December",5,5,5,"x",null,"Level 6","400 King William Street","ADELAIDE","SA",5000,"PO Box 6468","Halifax Street","ADELAIDE","SA",5000,"Craig de Laine","08 8418 1129 ","craig.delaine@agn.com.au","NO","NO","NO","NO","NO","-","CBD","Urban","Short rural","Long rural",null,"NO"]
[null,"AGN (SA)","Australian Gas Networks Limited (reporting data for SA)",19078551685,"SA","Gas","Distribution","Weighted average price cap","Financial","June",5,5,5,5,"distribution determination","Level 6","400 King William Street","ADELAIDE","SA",5000,"PO Box 6468","Halifax Street","ADELAIDE","SA",5000,"Craig de Laine","08 8418 1129 ","craig.delaine@agn.com.au","NO","NO","NO","NO","NO","-","CBD","Urban","Short rural","Long rural",null,"NO","AGN (SA)"]
[null,"AGN (Victoria)","Australian Gas Networks Limited (reporting data for Victoria)",19078551685,"Vic","Gas","Distribution","Weighted average price cap","Calendar","December",5,5,5,"x",null,"Level 6","400 King William Street","ADELAIDE","SA",5000,"PO Box 6468","Halifax Street","ADELAIDE","SA",5000,"Craig de Laine","08 8418 1129 ","craig.delaine@agn.com.au","NO","NO","NO","NO","NO","-","CBD","Urban","Short rural","Long rural",null,"NO","AGN (Victoria)"]
[null,"Amadeus","APT Pipelines (NT) Pty Ltd",39009737393,"NT","Gas","Transmission","Weighted average price cap","Financial","June",5,5,5,"x","n/a","Level 19, HSBC Building","580 George Street","SYDNEY","NSW",2000,"Level 19, HSBC Building","580 George Street","SYDNEY","NSW",2000,"Alexandra Curran","02 9275 0020","alexandra.curran@apa.com.au","NO","NO","NO","NO","NO","-","CBD","Urban","Short rural","Long rural",null,"NO","Amadeus"]
[null,"APA GasNet","APA GasNet Australia (Operations) Pty Ltd","065083009","Vic","Gas","Transmission","Weighted average price cap","Calendar","December",5,5,5,"x",null,"Level 19, HSBC Building","580 George Street","SYDNEY","NSW",2000,"PO Box R41",null,"ROYAL EXCHANGE","NSW",1225,"Alexandra Curran","02 9275 0020","alexandra.curran@apa.com.au","NO","NO","NO","NO","NO","-","CBD","Urban","Short rural","Long rural",null,"NO","APA GasNet"]
[null,"Ausgrid","Ausgrid",78508211731,"NSW","Electricity","Distribution","Revenue cap","Financial","June",5,5,5,5,"2014-19 Distribution Determination","570 George St",null,"SYDNEY","NSW",2000,"GPO Box 4009",null,"SYDNEY","NSW",2001,"John Thomson","02 9269 2312","john.thomson@ausgrid.com.au","YES","YES","YES","YES","NO","NO","CBD","Urban","Short rural","Long rural",null,"YES","Ausgrid"]
[null,"Ausgrid (Tx Assets)","Ausgrid (Tx Assets)",67505337385,"NSW","Electricity","Distribution","Revenue cap","Financial","June",5,5,5,5,"distribution determination","570 George St",null,"SYDNEY","NSW",2000,"GPO Box 4009",null,"SYDNEY","NSW",2001,"John Thomson","02 9269 2312","john.thomson@ausgrid.com.au","YES","YES","YES","YES","NO","NO","CBD","Urban","Short rural","Long rural",null,"NO","Ausgrid (Tx Assets)"]
[null,"AusNet (D)","AusNet Electricity Services Pty Ltd",91064651118,"Vic","Electricity","Distribution","Revenue cap","Calendar","December",5,5,5,2,"2016-20 Distribution Determination","Level 32","2 Southbank Boulevard","SOUTHBANK","Vic",3006,"Locked Bag 14051",null,"MELBOURNE CITY MAIL CENTRE","Vic",8001,"Thomas Hall",null,"thomas. hall@ausnetservices.com.au","NO","YES","YES","YES","NO","YES","CBD","Urban","Short rural","Long rural",null,"YES","AusNet (D)"]
[null,"AusNet (Gas)","AusNet Gas Services","086015036","Vic","Gas","Distribution","Weighted average price cap","Calendar","December",5,5,5,"X",null,"Level 19, HSBC Building","580 George Street","SYDNEY","NSW",2000,"PO Box R41",null,"ROYAL EXCHANGE","NSW",1225,"Alexandra Curran","02 9275 0020","alexandra.curran@apa.com.au","NO","NO","NO","NO","NO","-","CBD","Urban","Short rural","Long rural",null,"NO","AusNet (Gas)"]
[null,"AusNet (T)","Ausnet Services (Transmission) Ltd",48116124362,"Vic","Electricity","Transmission","Revenue cap","Financial","March",5,5,5,2,"transmission determination","Level 32","2 Southbank Boulevard","SOUTHBANK","Vic",3006,"Locked Bag 14051",null,"MELBOURNE CITY MAIL CENTRE","Vic",8001,"Clare Thompson","03 9695 6670","clare.e.thompson@ausnetservices.com.au","NO","NO","NO","NO","NO","-","CBD","Urban","Short rural","Long rural",null,"NO","AusNet (T)"]
[null,"Australian Distribution Co.","Australian Distribution Co.",11222333444,"-","Electricity","Distribution","Revenue cap","Financial","June",5,5,5,2,"distribution determination","123 Straight Street",null,"SYDNEY","NSW",2000,"PO Box 123",null,"SYDNEY","NSW",2000,"Bob Smith","02 1234 5678","bob@auselec.net.au","YES","YES","YES","YES","NO","NO","CBD","Urban","Short rural","Long rural",null,"YES","Australian Distribution Co."]
[null,"Australian Distribution Co. (Gas)","Australian Gas Distribution Co. ",11222333444,"NSW","Gas","Distribution","Weighted average price cap","Financial","June",5,5,5,null,null,"123 Straight Street",null,"SYDNEY","NSW",2000,"PO Box 123",null,"SYDNEY","NSW",2000,"Bob Smith","02 1234 5678","bob@auselec.net.au","NO","NO","NO","NO","NO","-","CBD","Urban","Short rural","Long rural",null,"NO","Australian Distribution Co. (Vic)"]
[null,"Australian Distribution Co. (Vic)","Australian Distribution Co. (Victoria)",11222333444,"Vic","Electricity","Distribution","Revenue cap","Calendar","December",5,5,5,2,"distribution determination","123 Straight Street",null,"MELBOURNE","Vic",3000,"PO Box 123",null,"MELBOURNE","Vic",3000,"Bob Smith","02 1234 5678","bob@auselec.net.au","NO","NO","NO","NO","NO","YES","CBD","Urban","Short rural","Long rural",null,"YES","Australian Distribution Co. (Vic)"]
[null,"Australian Transmission Co.","Australian Transmission Co.",11222333444,"-","Electricity","Transmission","Revenue cap","Financial","June",5,5,5,5,"transmission determination","123 Straight Street",null,"SYDNEY","NSW",2000,"PO Box 123",null,"SYDNEY","NSW",2000,"Bob Smith","02 1234 5678","bob@auselec.net.au","NO","NO","NO","NO","NO","-","CBD","Urban","Short rural","Long rural",null,"NO","Australian Transmission Co."]
[null,"Central Ranges Pipeline (D)","Central Ranges Pipeline Pty Ltd",108218355,"NSW","Gas","Distribution","Weighted average price cap","Financial","June",15,5,5,5,"distribution determination","Level 19","580 George Street","SYDNEY","NSW",2000,"PO Box R41",null,"ROYAL EXCHANGE","NSW",1225,"Scott Young","02 9275 0031","scott.young@apa.com.au","NO","NO","NO","NO","NO","-","CBD","Urban","Short rural","Long rural",null,"NO"]
[null,"Central Ranges Pipeline (T)","Central Ranges Pipeline Pty Ltd",108218355,"NSW","Gas","Distribution","Weighted average price cap","Financial","June",14,5,5,5,"transmission determination","Level 19","580 George Street","SYDNEY","NSW",2000,"PO Box R41",null,"ROYAL EXCHANGE","NSW",1225,"Scott Young","02 9275 0031","scott.young@apa.com.au","NO","NO","NO","NO","NO","-","CBD","Urban","Short rural","Long rural",null,"NO"]
[null,"CitiPower","CitiPower",76064651056,"Vic","Electricity","Distribution","Revenue cap","Calendar","December",5,5,5,2,"2016-20 Distribution Determination","40 Market Street",null,"MELBOURNE","Vic",3000,"Locked Bag 14090",null,"MELBOURNE","Vic",8001,"Hannah Williams","03 9683 4088","hwilliams@powercor.com.au","YES","YES","NO","NO","NO","YES","CBD","Urban","Short rural","Long rural",null,"YES","CitiPower"]
[null,"Directlink","Directlink",16779340889,"Qld","Electricity","Transmission","Revenue cap","Financial","June",5,5,5,5,"transmission determination","Level 25","580 George Street","SYDNEY","NSW",2000,"PO Box R41",null,"ROYAL EXCHANGE","NSW",1225,"Mark Allen","02 9275 0010","mark.allen@apa.com.au","NO","NO","NO","NO","NO","-","CBD","Urban","Short rural","Long rural",null,"NO","Directlink"]
[null,"ElectraNet","ElectraNet",41094482416,"SA","Electricity","Transmission","Revenue cap","Financial","June",5,5,5,5,"transmission determination","52-55 East Terrace","Rymill Park","ADELAIDE","SA",5000,"PO Box 7096","Hutt Street Post Office","ADELAIDE","SA",5000,"Bill Jackson","08 8404 7969","jackson.bill@electranet.com.au","NO","NO","NO","NO","NO","-","CBD","Urban","Short rural","Long rural",null,"NO","ElectraNet"]
[null,"Endeavour Energy","Endeavour Energy",11247365823,"NSW","Electricity","Distribution","Revenue cap","Financial","June",5,5,5,5,"2014-19 Distribution Determination","51 Huntingwood Drive",null,"HUNTINGWOOD","NSW",2148,"PO Box 811",null,"SEVEN HILLS","NSW",1730,"Jon Hocking","02 9853 4386 / 0407 348 156","Jon.Hocking@Endeavourenergy.com.au","NO","YES","YES","YES","NO","NO","CBD","Urban","Short rural","Long rural",null,"YES","Endeavour Energy"]
[null,"Energex","Energex",40078849055,"Qld","Electricity","Distribution","Revenue cap","Financial","June",5,5,5,5,"2015-20 Distribution Determination","26 Reddacliff Street",null,"NEWSTEAD","Qld",4006,"26 Reddacliff Street",null,"NEWSTEAD","QLD",4006,"Jenny Doyle, Group Manager Regulatory Affairs","(07) 3851 6416","jenny.doyle@ergon.com.au","YES","YES","YES","NO","NO","NO","CBD","Urban","Short rural","Long rural",null,"YES","Energex"]
[null,"Ergon Energy","Ergon Energy",50087646062,"Qld","Electricity","Distribution","Revenue cap","Financial","June",5,5,5,5,"2015-20 Distribution Determination","22 Walker Street",null,"TOWNSVILLE","Qld",4810,"Po Box 264",null,"FORTITUDE VALLEY","QLD",4006,"Jenny Doyle, Group Manager Regulatory Affairs","(07) 3851 6416","jenny.doyle@ergon.com.au","NO","YES","YES","YES","NO","NO","CBD","Urban","Short rural","Long rural",null,"YES","Ergon Energy"]
[null,"Essential Energy","Essential Energy",37428185226,"NSW","Electricity","Distribution","Revenue cap","Financial","June",5,5,5,5,"2014-19 Distribution Determination","8 Buller Street",null,"PORT MACQUARIE","NSW",2444,"PO Box 5730",null,"PORT MACQUARIE","NSW",2444,"Catherine Waddell","02 6338 3553","catherine.waddell@essentialenergy.com.au","NO","NO","YES","YES","NO","NO","CBD","Urban","Short rural","Long rural",null,"YES","Essential Energy"]
[null,"Jemena Electricity","Jemena Electricity",82064651083,"Vic","Electricity","Distribution","Revenue cap","Calendar","December",5,5,5,2,"2016-20 Distribution Determination","Level 16","567 Collins Street","MELBOURNE","Vic",3000,"PO Box 16182",null,"MELBOURNE","Vic",8001,"Matthew Serpell","03 9173 8231","matthew.serpell@jemena.com.au","NO","YES","YES","NO","NO","YES","CBD","Urban","Short rural","Long rural",null,"YES","Jemena Electricity"]
[null,"JGN","Jemena Gas Networks (NSW) Ltd","003 004 322","NSW","Gas","Distribution","Weighted average price cap","Financial","June",5,5,5,null,null,null,null,null,null,null,null,null,null,null,null,"please provide contact details",null,null,"NO","NO","NO","NO","NO","-","CBD","Urban","Short rural","Long rural",null,"NO","JGN"]
[null,"Multinet Gas","Multinet Gas (DB No.1) Pty Ltd (ACN 086 026 986), Multinet Gas (DB No.2) Pty Ltd (ACN 086 230 122)","086026986","Vic","Gas","Distribution","Weighted average price cap","Calendar","December",5,5,5,"x",null,"43-45 Centreway",null,"MT WAVERLEY","Vic",3149,null,null,null,null,null,"Andrew Schille","03 8846 9860","andrew.schille@ue.com.au","NO","NO","NO","NO","NO","-","CBD","Urban","Short rural","Long rural",null,"NO","Multinet Gas"]
[null,"Murraylink","Murraylink",79181207909,"SA","Electricity","Transmission","Revenue cap","Financial","June",5,5,5,5,"transmission determination","Level 19","580 George Street","SYDNEY","NSW",2000,"PO Box R41",null,"ROYAL EXCHANGE","NSW",1225,"Scott Young","02 9275 0031","scott.young@apa.com.au","NO","NO","NO","NO","NO","-","CBD","Urban","Short rural","Long rural",null,"NO","Murraylink"]
[null,"Power and Water","Power and Water Corporation",15947352360,"NT","Electricity","Distribution","Revenue cap","Financial","June",5,5,5,"x","distribution determination","GPO Box 1921",null,"DARWIN","NT",801,"GPO Box 1921",null,"DARWIN","NT",801,"Lucy Moon","08 8924 5822","Lucy.Moon@powerwater.com.au","YES","YES","YES","YES","NO","NO","CBD","Urban","Short rural","Long rural",null,"NO","Power and Water"]
[null,"Powercor Australia","Powercor Australia",89064651109,"Vic","Electricity","Distribution","Revenue cap","Calendar","December",5,5,5,2,"2016-20 Distribution Determination","40 Market Street",null,"MELBOURNE","Vic",3000,"Locked bag 14090",null,"MELBOURNE","Vic",8001,"Hannah Williams","03 9683 4088","hwilliams@powercor.com.au","NO","NO","YES","YES","NO","YES","CBD","Urban","Short rural","Long rural",null,"YES","Powercor Australia"]
[null,"Powerlink","Queensland Electricity Transmission Corporation Limited trading as Powerlink Queensland",82078849233,"Qld","Electricity","Transmission","Revenue cap","Financial","June",5,5,5,5,"transmission determination","33 Harold St",null,"VIRGINIA","Qld",4014,"PO Box 1193",null,"VIRGINIA","QLD",4014,"Jennifer Harris","07 3860 2667","jharris@powerlink.com.au","NO","NO","NO","NO","NO","-","CBD","Urban","Short rural","Long rural",null,"NO","Powerlink"]
[null,"Roma to Brisbane Pipeline","APT Petroleum Pipelines Limited t/a Roma to Brisbane Pipeline","009 737 393","Qld","Gas","Transmission","Weighted average price cap","Financial","June",5,5,5,"x","n/a","580 George Street",null,"SYDNEY","NSW",2000,"PO Box R41",null,"ROYAL EXCHANGE","NSW",1225,"Mark Allen","02 9275 0010","mark.allen@apa.com.au","NO","NO","NO","NO","NO","-","CBD","Urban","Short rural","Long rural",null,"NO","Roma to Brisbane Pipeline"]
[null,"SA Power Networks","SA Power Networks",13332330749,"SA","Electricity","Distribution","Revenue cap","Financial","June",5,5,5,5,"2015-20 Distribution Determination","1 Anzac Highway",null,"KESWICK","SA",5035,"GPO Box 77",null,"ADELAIDE","SA",5000,"Richard Sibly","08 8404 5613","richard.sibly@sapowernetworks.com.au","NO","NO","YES","YES","NO","NO","CBD","Urban","Short rural","Long rural",null,"NO","SA Power Networks"]
[null,"TasNetworks (D)","TasNetworks (D)",24167357299,"Tas","Electricity","Distribution","Revenue cap","Financial","June",5,5,5,5,"distribution determination","1-7 Maria Street",null,"LENAH VALLEY","Tas",7008,"PO Box 606",null,"MOONAH","Tas",7009,"Tim Astley","03 6271 6151","tim.astley@tasnetworks.com.au","YES","YES","YES","YES","YES","NO","Critical Infrastructure","High density commercial","Urban","High density rural","Low density rural","YES","TasNetworks (D)"]
[null,"TasNetworks (T)","TasNetworks (T)",24167357299,"Tas","Electricity","Transmission","Revenue cap","Financial","June",5,5,5,5,"transmission determination","1-7 Maria Street",null,"LENAH VALLEY","Tas",7008,"PO Box 606",null,"MOONAH","Tas",7009,"Tim Astley","03 6271 6151","tim.astley@tasnetworks.com.au","NO","NO","NO","NO","NO","-","CBD","Urban","Short rural","Long rural",null,"NO","TasNetworks (T)"]
[null,"TransGrid","NSW Electricity Networks Operations Pty Ltd trading as TransGrid","70 250 995 390","NSW","Electricity","Transmission","Revenue cap","Financial","June",4,5,5,5,"transmission determination","180 Thomas Street",null,"SYDNEY","NSW",2000,"PO Box A1000",null,"SYDNEY SOUTH","NSW",1235,"Garrie Chubb","0408 210 221","garrie.chubb@transgrid.com.au","NO","NO","NO","NO","NO","-","CBD","Urban","Short rural","Long rural",null,"NO","TransGrid"]
[null,"United Energy","United Energy",70064651029,"Vic","Electricity","Distribution","Revenue cap","Calendar","December",5,5,5,2,"2016-20 Distribution Determination","43-45 Centreway",null,"MOUNT WAVERLEY","Vic",3149,"PO Box 449",null,"MOUNT WAVERLEY","Vic",3170,"Mathew Abraham","03 8846 9758","mathew.abraham@ue.com.au","NO","NO","YES","NO","NO","YES","CBD","Urban","Short rural","Long rural",null,"YES","United Energy"]
[]
[]
[]
[]
[null,"The Reg Year Ending (dms_RYE) must be set to the last year of the regulatory period. For forecast data is is usually (FRCP_y5) for actual it is a single year (CRY). For historical actual data the RYE will need to be set manually in the business details sheet by setting the dms_Multiyear_flag to 1 and putting the correct value in 'dms_Specified_FinalYear. See cells C67:C68"]
[null,"dms_Model_List ","dms_Model_Name_Format1","dms_Worksheet_List","dms_Model_Span_List"]
[null,"ARR","Annual Reporting",{"$f":"IF(dms_MultiYear_ResponseFlag=\"yes\",\"NEW HISTORICAL ANNUAL REPORTING\",\"ANNUAL REPORTING\")","v":"ANNUAL REPORTING"},1]
[null,"CA","Category Analysis",{"$f":"IF(dms_MultiYear_ResponseFlag=\"yes\",\"NEW HISTORICAL CATEGORY ANALYSIS\",\"CATEGORY ANALYSIS\")","v":"CATEGORY ANALYSIS"},1]
[null,"CESS","Capitlal Expenditure","CAPITLAL EXPENDITURE SHARING SCHEMING",5]
[null,"CPI","CPI","CPI",5]
[null,"EB","Economic Benchmarking",{"$f":"IF(dms_MultiYear_ResponseFlag=\"yes\",\"NEW HISTORICAL ECONOMIC BENCHMARKING\",\"ECONOMIC BENCHMARKING\")","v":"ECONOMIC BENCHMARKING"},1]
[null,"Pricing","Pricing Proposal","PRICING PROPOSAL",5]
[null,"PTRM","Post Tax Revenue Model","POST TAX REVENUE MODEL",5]
[null,"Reset","Regulatory Reporting (Reset)","REGULATORY REPORTING STATEMENT",5]
[null,"RFM","Roll Forward Model","ROLL FORWARD MODEL",5]
[null,"WACC","Weighted Average Cost of Capital","WEIGHTED AVERAGE COST OF CAPITAL",1]
[]
[]
[]
[null,"Financial","Calendar",null,"PREVIOUS",null,"CURRENT",null,"FORTHCOMING"]
[null,"1987-88","1988","PRCP_y1",{"$f":"INDEX(INDIRECT(dms_RPT),dms_PRCP_start_row)","v":2011},"CRCP_y1",{"$f":"INDEX(INDIRECT(dms_RPT),dms_CRCP_start_row)","v":2016},{"$f":"FRCP_y1","v":2021},{"$f":"INDEX(INDIRECT(dms_RPT),dms_FRCP_start_row)","v":2021}]
[null,"1988-89","1989","PRCP_y2",{"$f":"INDEX(INDIRECT(dms_RPT),dms_PRCP_start_row+1)","v":2012},"CRCP_y2",{"$f":"INDEX(INDIRECT(dms_RPT),dms_CRCP_start_row+1)","v":2017},"FRCP_y2",{"$f":"INDEX(INDIRECT(dms_RPT),dms_FRCP_start_row+1)","v":2022}]
[null,"1989-90","1990","PRCP_y3",{"$f":"INDEX(INDIRECT(dms_RPT),dms_PRCP_start_row+2)","v":2013},"CRCP_y3",{"$f":"INDEX(INDIRECT(dms_RPT),dms_CRCP_start_row+2)","v":2018},"FRCP_y3",{"$f":"INDEX(INDIRECT(dms_RPT),dms_FRCP_start_row+2)","v":2023}]
[null,"1990-91","1991","PRCP_y4",{"$f":"INDEX(INDIRECT(dms_RPT),dms_PRCP_start_row+3)","v":2014},"CRCP_y4",{"$f":"INDEX(INDIRECT(dms_RPT),dms_CRCP_start_row+3)","v":2019},"FRCP_y4",{"$f":"INDEX(INDIRECT(dms_RPT),dms_FRCP_start_row+3)","v":2024}]
[null,"1991-92","1992","PRCP_y5",{"$f":"INDEX(INDIRECT(dms_RPT),dms_PRCP_start_row+4)","v":2015},"CRCP_y5",{"$f":"INDEX(INDIRECT(dms_RPT),dms_CRCP_start_row+4)","v":2020},"FRCP_y5",{"$f":"INDEX(INDIRECT(dms_RPT),dms_FRCP_start_row+4)","v":2025}]
[null,"1992-93","1993","PRCP_y6",{"$f":"INDEX(INDIRECT(dms_RPT),dms_PRCP_start_row+5)","v":2016},"CRCP_y6",{"$f":"INDEX(INDIRECT(dms_RPT),dms_CRCP_start_row+5)","v":2021},"FRCP_y6",{"$f":"INDEX(INDIRECT(dms_RPT),dms_FRCP_start_row+5)","v":2026}]
[null,"1993-94","1994","PRCP_y7",{"$f":"INDEX(INDIRECT(dms_RPT),dms_PRCP_start_row+6)","v":2017},"CRCP_y7",{"$f":"INDEX(INDIRECT(dms_RPT),dms_CRCP_start_row+6)","v":2022},"FRCP_y7",{"$f":"INDEX(INDIRECT(dms_RPT),dms_FRCP_start_row+6)","v":2027}]
[null,"1994-95","1995","PRCP_y8",{"$f":"INDEX(INDIRECT(dms_RPT),dms_PRCP_start_row+7)","v":2018},"CRCP_y8",{"$f":"INDEX(INDIRECT(dms_RPT),dms_CRCP_start_row+7)","v":2023},"FRCP_y8",{"$f":"INDEX(INDIRECT(dms_RPT),dms_FRCP_start_row+7)","v":2028}]
[null,"1995-96","1996","PRCP_y9",{"$f":"INDEX(INDIRECT(dms_RPT),dms_PRCP_start_row+8)","v":2019},"CRCP_y9",{"$f":"INDEX(INDIRECT(dms_RPT),dms_CRCP_start_row+8)","v":2024},"FRCP_y9",{"$f":"INDEX(INDIRECT(dms_RPT),dms_FRCP_start_row+8)","v":2029}]
[null,"1996-97","1997","PRCP_y10",{"$f":"INDEX(INDIRECT(dms_RPT),dms_PRCP_start_row+9)","v":2020},"CRCP_y10",{"$f":"INDEX(INDIRECT(dms_RPT),dms_CRCP_start_row+9)","v":2025},"FRCP_y10",{"$f":"INDEX(INDIRECT(dms_RPT),dms_FRCP_start_row+9)","v":2030}]
[null,"1997-98","1998","PRCP_y11",{"$f":"INDEX(INDIRECT(dms_RPT),dms_PRCP_start_row+10)","v":2021},"CRCP_y11",{"$f":"INDEX(INDIRECT(dms_RPT),dms_CRCP_start_row+10)","v":2026},"FRCP_y11",{"$f":"INDEX(INDIRECT(dms_RPT),dms_FRCP_start_row+10)","v":2031}]
[null,"1998-99","1999","PRCP_y12",{"$f":"INDEX(INDIRECT(dms_RPT),dms_PRCP_start_row+11)","v":2022},"CRCP_y12",{"$f":"INDEX(INDIRECT(dms_RPT),dms_CRCP_start_row+11)","v":2027},"FRCP_y12",{"$f":"INDEX(INDIRECT(dms_RPT),dms_FRCP_start_row+11)","v":2032}]
[null,"1999-00","2000","PRCP_y13",{"$f":"INDEX(INDIRECT(dms_RPT),dms_PRCP_start_row+12)","v":2023},"CRCP_y13",{"$f":"INDEX(INDIRECT(dms_RPT),dms_CRCP_start_row+12)","v":2028},"FRCP_y13",{"$f":"INDEX(INDIRECT(dms_RPT),dms_FRCP_start_row+12)","v":2033}]
[null,"2000-01","2001","PRCP_y14",{"$f":"INDEX(INDIRECT(dms_RPT),dms_PRCP_start_row+13)","v":2024},"CRCP_y14",{"$f":"INDEX(INDIRECT(dms_RPT),dms_CRCP_start_row+13)","v":2029},"FRCP_y14",{"$f":"INDEX(INDIRECT(dms_RPT),dms_FRCP_start_row+13)","v":2034}]
[null,"2001-02","2002","PRCP_y15",{"$f":"INDEX(INDIRECT(dms_RPT),dms_PRCP_start_row+14)","v":2025},"CRCP_y15",{"$f":"INDEX(INDIRECT(dms_RPT),dms_CRCP_start_row+14)","v":2030},"FRCP_y15",{"$f":"INDEX(INDIRECT(dms_RPT),dms_FRCP_start_row+14)","v":2035}]
[null,"2002-03","2003","PRCP_y16",{"$f":"INDEX(INDIRECT(dms_RPT),dms_PRCP_start_row+15)","v":2026},"CRCP_y16",{"$f":"INDEX(INDIRECT(dms_RPT),dms_CRCP_start_row+15)","v":2031},"FRCP_y16",{"$f":"INDEX(INDIRECT(dms_RPT),dms_FRCP_start_row+15)","v":2036}]
[null,"2003-04","2004"]
[null,"2004-05","2005"]
[null,"2005-06","2006",null,"CRY - FRY"]
[null,"2006-07","2007","dms_y1",{"$f":"IFERROR(INDEX(INDIRECT(dms_RPT),dms_CRY_start_row),0)","v":2019}]
[null,"2007-08","2008","dms_y2",{"$f":"IFERROR(INDEX(INDIRECT(dms_RPT),dms_CRY_start_row+1),0)","v":2020}]
[null,"2008-09","2009","dms_y3",{"$f":"IFERROR(INDEX(INDIRECT(dms_RPT),dms_CRY_start_row+2),0)","v":2021}]
[null,"2009-10",2010,"dms_y4",{"$f":"IFERROR(INDEX(INDIRECT(dms_RPT),dms_CRY_start_row+3),0)","v":2022}]
[null,"2010-11",2011,"dms_y5",{"$f":"IFERROR(INDEX(INDIRECT(dms_RPT),dms_CRY_start_row+4),0)","v":2023}]
[null,"2011-12",2012,"dms_y6",{"$f":"IFERROR(INDEX(INDIRECT(dms_RPT),dms_CRY_start_row+5),0)","v":2024}]
[null,"2012-13",2013,"dms_y7",{"$f":"IFERROR(INDEX(INDIRECT(dms_RPT),dms_CRY_start_row+6),0)","v":2025}]
[null,"2013-14",2014,"dms_y8",{"$f":"IFERROR(INDEX(INDIRECT(dms_RPT),dms_CRY_start_row+7),0)","v":2026}]
[null,"2014-15",2015,"dms_y9",{"$f":"IFERROR(INDEX(INDIRECT(dms_RPT),dms_CRY_start_row+8),0)","v":2027}]
[null,"2015-16",2016,"dms_y10",{"$f":"IFERROR(INDEX(INDIRECT(dms_RPT),dms_CRY_start_row+9),0)","v":2028}]
[null,"2016-17",2017,"dms_y11",{"$f":"IFERROR(INDEX(INDIRECT(dms_RPT),dms_CRY_start_row+10),0)","v":2029}]
[null,"2017-18",2018,"dms_y12",{"$f":"IFERROR(INDEX(INDIRECT(dms_RPT),dms_CRY_start_row+11),0)","v":2030}]
[null,"2018-19",2019,"dms_y13",{"$f":"IFERROR(INDEX(INDIRECT(dms_RPT),dms_CRY_start_row+12),0)","v":2031}]
[null,"2019-20",2020,"dms_y14",{"$f":"IFERROR(INDEX(INDIRECT(dms_RPT),dms_CRY_start_row+13),0)","v":2032}]
[null,"2020-21",2021,"dms_y15",{"$f":"IFERROR(INDEX(INDIRECT(dms_RPT),dms_CRY_start_row+14),0)","v":2033}]
[null,"2021-22",2022,"dms_y16",{"$f":"IFERROR(INDEX(INDIRECT(dms_RPT),dms_CRY_start_row+15),0)","v":2034}]
[null,"2022-23",2023]
[null,"2023-24",2024]
[null,"2024-25",2025]
[null,"2025-26",2026]
[null,"2026-27",2027]
[null,"2027-28",2028]
[null,"2028-29",2029]
[null,"2029-30",2030]
[null,"2030-31",2031]
[null,"2031-32",2032]
[null,"2032-33",2033]
[null,"2033-34",2034]
[null,"2034-35",2035]
[null,"2035-36",2036]
[null,"2036-37","2037"]

{"sheet":"AER ETL","index":3,"n_rows":143,"n_cols":8,"rows_kept":143,"cut":false,"hidden":true,"merged":[[69,1,71,1],[9,0,13,0],[10,4,10,8],[12,2,12,4],[16,0,23,0],[24,0,29,0],[32,0,57,0]]}
[null,"AER ETL INFORMATION"]
[]
[null,"USES NAMED RANGES FLAG","yes","dms_Defined_Names_Used"]
[]
[null,"IF THIS IS AN ABC RIN - make sure the the named range CRY is applied and the named range dms_dollar_nom_UOM is applied"]
[null,"IF THIS IS A RESET RIN - make sure the named ranges CRY and dms_dollar_nom_UOM are NOT present in the workbook"]
[null,"FOR ABC RINS THAT SPAN MULTIPLE YEARS - make sure MultiYear Flag is set and final year entered as required"]
[]
["Selected here","Model / RIN","Reset","dms_Model"]
["Read from Business & other details","Source",{"$f":"dms_Selected_Source","v":"Regulatory proposal"},"dms_Source"]
[null,"Data quality",{"$f":"dms_Selected_Quality","v":"Consolidated"},"dms_DQ_1"]
[null,"Data status",{"$f":"dms_Selected_Status","v":"Public"},"dms_DQ_2"]
[null,"Amendment reason",{"$f":"dms_Amendment_Text","v":"."},null,null,"dms_AmendmentReason"]
[null,"Submission date",{"$f":"dms_Typed_Submission_Date","v":"2020-01-31"},"dms_SubmissionDate"]
[]
["Redundant","EBSS - First application of scheme in forthcoming period?","No","dms_EBSS_status"]
["Pre-populated from lookup table","Data ingestion data quality",{"$f":"IF(dms_DQ_2=\"Confidential\",\"Consolidated\",\"Public\")","v":"Public"},"dms_DataQuality","=IF(dms_DQ_2=\"Confidential\",\"Consolidated\",\"Public\")"]
[null,"Sector",{"$f":"INDEX(dms_Sector_List,MATCH(dms_TradingName,dms_TradingName_List))","v":"Electricity"},"dms_Sector","=INDEX(dms_Sector_List,MATCH(dms_TradingName,dms_TradingName_List))"]
[null,"Segment",{"$f":"INDEX(dms_Segment_List,MATCH(dms_TradingName,dms_TradingName_List))","v":"Distribution"},"dms_Segment","=INDEX(dms_Segment_List,MATCH(dms_TradingName,dms_TradingName_List))"]
[null,"Regulatory Year Ending",{"$f":"dms_RYE_result","v":"2025"},"dms_RYE","=IF(dms_MultiYear_Flag=1,LEFT(dms_Specified_FinalYear,2)&RIGHT(dms_Specified_FinalYear,2),INDEX(dms_RYE_Formula_Result,MATCH(dms_Model,dms_Model_List)))"]
[null,"Reporting Period Type",{"$f":"INDEX(dms_RPT_List,MATCH(dms_TradingName,dms_TradingName_List))","v":"Calendar"},"dms_RPT","=INDEX(dms_RPT_List,MATCH(dms_TradingName,dms_TradingName_List))"]
[null,"EB/CA Unit of Measure for Monetary Values","$0s","dms_dollar_nom_UOM","If the cover sheet is attached to an ABC RIN apply the NAMED RANGE to the cell"]
[null,"Security Classification","Public","dms_Classification","Always Public"]
[null,"Jurisdiction",{"$f":"INDEX(dms_JurisdictionList,MATCH(dms_TradingName,dms_TradingName_List))","v":"Vic"},"dms_Jurisdiction","=INDEX(dms_JurisdictionList,MATCH(dms_TradingName,dms_TradingName_List))"]
["Relevant for PTRM, RFMs and Reset RINS","$ REAL REFERENCES"]
[null,"Does the named range CRY exist in this file? ",{"$f":"IFERROR(CRY,\"NO\")","v":2019}]
[null,"CRY-1  (last full calendar year before CRY)",{"$f":"IFERROR(IF(dms_RPT=\"calendar\",CRY-1,LEFT(CRY,4)),\"CRY not present\")","v":2018},"dms_Cal_Year_B4_CRY","'=IF(dms_RPT=\"financial\",VALUE(LEFT(dms_SingleYear_FinalYear_Result,4)),VALUE(LEFT(dms_SingleYear_FinalYear_Result,4)-1))"]
[null,"Dollar $ real month",{"$f":"INDEX(dms_RPTMonth_List,MATCH(dms_TradingName,dms_TradingName_List))","v":"December"},"dms_RPTMonth","=INDEX(dms_RPTMonth_List,MATCH(dms_TradingName,dms_TradingName_List))"]
[null,"Dollar $ real  (the last month before the FRCP_y1)",{"$f":"IF(dms_SingleYearModel=\"yes\",CONCATENATE(dms_RPTMonth)&\" \"&VALUE((LEFT(CRY,2))&RIGHT(CRY,2)),CONCATENATE(dms_RPTMonth)&\" \"&dms_DollarReal_year)","v":"December 2020"},"dms_DollarReal","=IF(SUM(dms_SingleYear_Model)>0,CONCATENATE(dms_RPTMonth)&\" \"&VALUE((LEFT(CRY,2))&RIGHT(CRY,2)),CONCATENATE(dms_RPTMonth)&\" \"&VALUE((LEFT(dms_RYE,2)&RIGHT(dms_RYE,2))))"]
[null,"Dollar $ real previous year (PRCP_y5)",{"$f":"IF(dms_SingleYearModel=\"yes\",CONCATENATE(dms_RPTMonth)&\" \"&VALUE((LEFT(CRY,2))&RIGHT(CRY,2)),CONCATENATE(dms_RPTMonth)&\" \"&dms_Previous_DollarReal_year)","v":"December 2015"},"dms_DollarReal_Prev","=IF(SUM(dms_SingleYear_Model)>0,CONCATENATE(dms_RPTMonth)&\" \"&VALUE(((LEFT(CRY,2))&RIGHT(CRY,2))-1),CONCATENATE(dms_RPTMonth)&\" \"&VALUE(((LEFT(dms_CRCP_FirstYear_Result,2)&RIGHT(dms_CRCP_FirstYear_Result,2))))-1)"]
[null,"PTRM/ RFMs"]
[null,"Form of control",{"$f":"INDEX(dms_FormControl_List,MATCH(dms_TradingName,dms_TradingName_List))","v":"Revenue cap"},"dms_FormControl","=INDEX(dms_FormControl_List,MATCH(dms_TradingName,dms_TradingName_List))"]
["All potential values for Regulatory Years or RYEs as calculated","This block works out the various RYE's for ALL RIN types and MODELS"]
[null,"dms_start_year",{"$f":"FRCP_y1","v":2021},"FRCP_y1 from cover sheet"]
[null,"dms_CRY_start_year",{"$f":"IFERROR(CRY,0)","v":2019}]
[null,"dms_CRY_start_row",{"$f":"MATCH(CRY,INDIRECT(dms_RPT),0)","v":32}]
[null,"dms_FRCP_start_row",{"$f":"MATCH(dms_start_year,INDIRECT(dms_RPT),0)","v":34},"Uses FRCP_y1 as a start reference"]
[null,"dms_CRCP_start_row",{"$f":"dms_FRCP_start_row-dms_CRCPlength_Num","v":29},"Uses the value in dms_CRCPlength_Num"]
[null,"dms_PRCP_start_row",{"$f":"dms_FRCP_start_row-dms_CRCPlength_Num-dms_PRCPlength_Num","v":24},"Uses the value in dms_CRCPlength_Num and dms_PRCPlength_Num"]
[null,"dms_RYE_start_row",{"$f":"dms_FRCP_start_row+(dms_FRCPlength_Num-1)","v":38},"Uses the value in dms_FRCPlength_Num-1"]
[null,"FRCP_start_year",{"$f":"INDEX(INDIRECT(dms_RPT),dms_FRCP_start_row)","v":2021},"Converts the FRCP start row to display the year"]
[null,"CRCP_start_year",{"$f":"INDEX(INDIRECT(dms_RPT),dms_CRCP_start_row)","v":2016},"Converts the CRCP start row to display the year"]
[null,"PRCP_start_year",{"$f":"INDEX(INDIRECT(dms_RPT),dms_PRCP_start_row)","v":2011},"Converts the PRCP start row to display the year"]
[null,"FRCP_final_year",{"$f":"INDEX(INDIRECT(dms_RPT),dms_FRCP_start_row+dms_FRCPlength_Num-1)","v":2025},"Finds the FRCP final year"]
[null,"CRCP_final_year",{"$f":"INDEX(INDIRECT(dms_RPT),dms_CRCP_start_row+dms_CRCPlength_Num-1)","v":2020},"Finds the CRCP final year"]
[null,"PRCP_final_year",{"$f":"INDEX(INDIRECT(dms_RPT),dms_PRCP_start_row+dms_FRCPlength_Num-1)","v":2015},"Finds the PRCP final year"]
[null,"dms_Reset_final_year",{"$f":"INDEX(INDIRECT(dms_RPT),dms_RYE_start_row)","v":2025},"For Resets and PTRM/RFMs (same as FRCP_final_year)"]
[null,"dms_SpecifiedYear_final_year",{"$f":"FRY","v":2019},"FRY from cover sheet"]
[null,"dms_DollarReal_year",{"$f":"LEFT(CRCP_final_year,2)&RIGHT(CRCP_final_year,2)","v":"2020"},"Uses the value in CRCP_final_year"]
[null,"dms_Previous_DollarReal_year",{"$f":"LEFT(PRCP_final_year,2)&RIGHT(PRCP_final_year,2)","v":"2015"},"Uses the value in PRCP_final_year"]
[null,"dms_CRY_RYE",{"$f":"IFERROR(LEFT(CRY,2)&RIGHT(CRY,2),0)","v":"2019"},"For ABC single year RINS"]
[null,"dms_Reset_RYE",{"$f":"IF(dms_Model_Span>1,(LEFT(dms_Reset_final_year,2)&RIGHT(dms_Reset_final_year,2)),0)","v":"2025"},"If model span > 1 then uses dms_Reset_RYE otherwise it's a multi year ABC and uses dms_Specified_RYE"]
[null,"dms_Specified_RYE",{"$f":"IF(dms_MultiYear_ResponseFlag=\"Yes\",(LEFT(dms_Specified_FinalYear,2)&RIGHT(dms_Specified_FinalYear,2)),0)","v":0},"If multi year ABC - uses dms_Specified_FinalYear"]
[null,"dms_Model_Span",{"$f":"INDEX(dms_Model_Span_List,MATCH(dms_Model,dms_Model_List))","v":5},"A result of 5 is used to signify that it is more than 1 year span"]
[null,"dms_RYE_result",{"$f":"IF(dms_MultiYear_ResponseFlag=\"yes\",dms_Specified_RYE,(IF(dms_Model_Span>1,dms_Reset_RYE,dms_CRY_RYE)))","v":"2025"},"Nested IF - feeds into dms_RYE"]
[null,"dms_Reset_Span",{"$f":"IF(dms_Reset_RYE>0,CONCATENATE(FRCP_y1,\" to \",FRCP_final_year),0)","v":"2021 to 2025"},"Reset span of years as text"]
[null,"dms_SpecifiedYear_Span",{"$f":"IF(dms_Specified_RYE>0,CONCATENATE(CRY,\" to \",dms_Specified_FinalYear),0)","v":0},"Multi year ABC span of years as text"]
[null,"dms_Header_Span",{"$f":"IF(dms_MultiYear_Flag=1,dms_SpecifiedYear_Span,IF(dms_Model_Span>1,dms_Reset_Span,CRY))","v":"2021 to 2025"},"NESTED IF - for Sheet Headers"]
[null,"ABC RINS THAT SPAN MULTIPLE YEARS"]
[null,"This is a multi year ABC RIN?","No"]
[null,null,{"$f":"IF(dms_MultiYear_ResponseFlag=\"No\",0,1)","v":0},"dms_MultiYear_Flag","This is set from the answer provided above"]
[null,null,{"$f":"IF(dms_MultiYear_Flag=1,FRY,\"not a Multiple year submission\")","v":"not a Multiple year submission"},"dms_Specified_FinalYear","The result here is returned to dms_CRCP_FinalYear_Result if response to Q in C73 is \"yes\" and dms_MultiYear_Flag is set to 1"]
[null," Start year for 5.2 in Multi year ABC RINS",{"$f":"IFERROR(IF(dms_MultiYear_Flag=1,FRY,CRY),\"not an ABC\")","v":2019},"dms_0502_Inst_Year","=IF(dms_MultiYear_Flag=1,FRY,CRY)",null,"For single year RINS this is CRY - multi year RINS need to start a the end of the span of years (ie. FRY)"]
[null,"WHAT IS THE RYE?"]
[null,"Reg Period Lengths"]
[null,"PRCP length in years",{"$f":"INDEX(dms_PRCPlength_List,MATCH(dms_TradingName,dms_TradingName_List))","v":5},"dms_PRCPlength_Num","=INDEX(dms_PRCPlength_List,MATCH(dms_TradingName,dms_TradingName_List))"]
[null,"CRCP length in years",{"$f":"INDEX(dms_CRCPlength_List,MATCH(dms_TradingName,dms_TradingName_List))","v":5},"dms_CRCPlength_Num","=INDEX(dms_CRCPlength_List,MATCH(dms_TradingName,dms_TradingName_List))"]
[null,"FRCP length in years",{"$f":"INDEX(dms_FRCPlength_List,MATCH(dms_TradingName,dms_TradingName_List))","v":5},"dms_FRCPlength_Num","=INDEX(dms_FRCPlength_List,MATCH(dms_TradingName,dms_TradingName_List))"]
[null,"Single year RIN?"]
[null,"Single Year ABC RIN ?",{"$f":"IF(dms_Model=\"EB\",1,0)","v":0},"dms_EB"]
[null,null,{"$f":"IF(dms_Model=\"CA\",1,0)","v":0},"dms_CA","=dms_SingleYear_Model"]
[null,null,{"$f":"IF(dms_Model=\"ARR\",1,0)","v":0},"dms_ARR"]
[null,"Is this a single Year ABC RIN?",{"$f":"IF(SUM(dms_SingleYear_Model)=1,\"yes\",\"no\")","v":"no"},"dms_SingleYearModel","=IF(SUM(dms_SingleYear_Model)=1,\"yes\",\"no\")"]
[null,"Single Year Final Year Result",{"$f":"IF(AND(dms_SingleYearModel=\"yes\",dms_MultiYear_Flag=0),CRY,0)","v":0},"dms_SingleYear_FinalYear_Result","=IFERROR(IF(SUM(dms_SingleYear_Model)<>0,(INDIRECT(dms_SingleYear_FinalYear_Ref)),\"not a single year RIN\"),\"CRY not present\")"]
[null,"Multi year RIN?"]
[]
[null,"Multi Year Reset/Model?",{"$f":"IF(dms_Model_Span>1,\"yes\",\"no\")","v":"yes"}]
[null,"Final year result for Reset/Model",{"$f":"IF(dms_Model_Span>1,dms_Reset_final_year,0)","v":2025}]
[]
[null,"Multi Year ABC RIN?",{"$f":"IF(dms_MultiYear_Flag=1,\"yes\",\"no\")","v":"no"}]
[null,"Final year result for ABC multi year",{"$f":"IF(dms_MultiYear_Flag=1,C48,0)","v":0}]
[]
[null,"EB RINS"]
[null,"Calendar Year for table 3.6 data",{"$f":"IFERROR(IF(dms_Segment=\"Transmission\",dms_Cal_Year_B4_CRY,CRY),\"CRY not present\")","v":2019},"dms_0306_Year","=IF(dms_Segment=\"Transmission\",dms_Cal_Year_B4_CRY,CRY)"]
[null,"CA RINS"]
[null,"Find how many rows in tables 6.3 sustained interruptions?",null,null,"dms_060301_MaxRows only returns a valid value when cover sheet is attached to a CA file"]
[null,null,{"$f":"IF(dms_Model<>\"CA\",\"not a CA\",\"Is a CA\")","v":"not a CA"},null,"=IF(dms_Model<>\"CA\",\"not a CA\",\"Is a CA\")"]
[null,"dms_060301_Avg_Duration_Sustained_Int_Values present?",{"$f":"IFERROR(IF(INDEX(dms_060301_Avg_Duration_Sustained_Int_Values,1,1)<>\"\",\"yes\",\"no\"),\"no\")","v":"no"},"dms_060301_checkvalue","=IFERROR(IF(INDEX(dms_060301_Avg_Duration_Sustained_Int_Values,1,1)<>\"\",\"yes\",\"no\"),\"no\")"]
[null,null,{"$f":"IF(AND(dms_Model=\"CA\",(dms_060301_checkvalue=\"no\")),\"error - NR not present\",\"no errors\")","v":"no errors"},null,"=IF(AND(dms_Model=\"CA\",(dms_060301_checkvalue=\"no\")),\"error - NR not present\",\"no errors\")"]
[null,"Table 6.3.1 - last row reference",{"$f":"IFERROR(IF(dms_Model=\"CA\",LOOKUP(2,1/(dms_060301_Avg_Duration_Sustained_Int_Values<>\"\"),(ROW(dms_060301_Avg_Duration_Sustained_Int_Values))),\"not a CA\"),\"6.3 not present\")","v":"not a CA"},"dms_060301_LastRow","=IFERROR(IF(dms_Model=\"CA\",LOOKUP(2,1/(dms_060301_Avg_Duration_Sustained_Int_Values<>\"\"),(ROW(dms_060301_Avg_Duration_Sustained_Int_Values))),\"not a CA\"),\"6.3 not present\")"]
[null,"Table 6.3.1 - max number rows",{"$f":"IFERROR(IF(dms_Model=\"CA\",(dms_060301_LastRow-15),\"not a CA\"),\"error\")","v":"not a CA"},"dms_060301_MaxRows","=IFERROR(IF(dms_Model=\"CA\",(dms_060301_LastRow-15),\"not a CA\"),\"error\")"]
[null,"Table 6.6.3 - Public lighting repair - no. business days",{"$f":"INDEX(dms_663_List,MATCH(dms_TradingName,dms_TradingName_List))","v":2},"dms_663","=INDEX(dms_663_List,MATCH(dms_TradingName,dms_TradingName_List))"]
[null,"ARR or RESET RINS"]
[null,"How many rows in tables 6.1 or 6.7?  (leap year?)","insert dms_LeapYear NR if required",null,"'dms_LeapYear is used to determine dms_060701_Max_Rows BUT it is only found on worksheet 6.1 or 6.7 and the date value in the cell is used to determine whether it is a leap year"]
[null,"Is dms_LeapYear named range present?",{"$f":"IFERROR(IF(dms_LeapYear,\"yes\"),\"no\")","v":"no"}]
[null,"Table 6.7.1 - includes a leap year?",{"$f":"\nIFERROR(IF(MONTH(DATE(YEAR(dms_LeapYear),2,29))=2,\"is a leap year\",\"not a leap year\"),\n\"dms_LeapYear not present\")","v":"dms_LeapYear not present"},"dms_LeapYear_Result","=IFERROR(IF(MONTH(DATE(YEAR(dms_LeapYear),2,29))=2,\"is a leap year\",\"not a leap year\"),\"dms_LeapYear not present\")"]
[null,"MaxRows if Reset and leap year",{"$f":"IF(dms_LeapYear_Result=\"is a leap year\",1827,1826)","v":1826},"dms_060701_Reset_MaxRows","=IF(dms_LeapYear_Result=\"is a leap year\",1827,1826)",null,null,"number of days present in Reset RIN table"]
[null,"MaxRows if ARR and leap year",{"$f":"IF(dms_LeapYear_Result=\"is a leap year\",366,365)","v":365},"dms_060701_ARR_MaxRows","=IF(dms_LeapYear_Result=\"is a leap year\",366,365)",null,null,"number of days present in ARR RIN table"]
[null,"Table 6.7.1 - Max Rows (leap year/ non leap year)",{"$f":"IF(dms_Model=\"ARR\",dms_060701_ARR_MaxRows,IF(dms_Model=\"Reset\",dms_060701_Reset_MaxRows,\"not a relevant RIN type\"))","v":1826},"dms_060701_MaxRows","=IF(dms_Model=\"ARR\",dms_060701_ARR_MaxRows,IF(dms_Model=\"Reset\",dms_060701_Reset_MaxRows,\"not a relevant RIN type\"))"]
[null,"How many columns in 6.7?   (4 or 5 feeder categories)",{"$f":"IF(dms_FifthFeeder_flag_NSP=\"NO\",\"This NSP has only 4 feeder categories\",\"This NSP has 5 feeder categories\")","v":"This NSP has only 4 feeder categories"}]
[null,"Table 6.7.1 - Last column (# of feeder categories > 4)",{"$f":"IF(dms_FifthFeeder_flag_NSP=\"NO\",10,12)","v":10},"dms_060701_MaxCols","=IF(dms_FifthFeeder_flag_NSP=\"NO\",8,10)"]
[null,"Table 6.7.1 - Number of offset rows",{"$f":"IF(dms_Model=\"ARR\",15,9)","v":9},"dms_060701_OffsetRows","=IF(dms_Model=\"ARR\",15,9)"]
[null,"Start date for telephone answering in 6.1 or 6.7?",null,null,"Using 060101 as naming standard not 060701 for start dates"]
[null,"Table 6.1.1 and 6.7.1 - Start Date as Text",{"$f":"IF(dms_SingleYearModel=\"yes\",(CONCATENATE(IF(LEN(CRY)=4,\"1-Jan-\",\"1-Jul-\"),LEFT(CRY,4))),(CONCATENATE(IF(LEN(PRCP_y4)=4,\"1-Jan-\",\"1-Jul-\"),LEFT(PRCP_y4,4))))","v":"1-Jan-2014"},"dms_060101_StartDateTxt","=IF(SUM(dms_SingleYear_Model)>1,(CONCATENATE(IF(LEN(CRY)=4,\"1-Jan-\",\"1-Jul-\"),LEFT(CRY,4))),(CONCATENATE(IF(LEN(CRCP_y4)=4,\"1-Jan-\",\"1-Jul-\"),LEFT(CRCP_y4,4))))"]
[null,"Table 6.1.1 and 6.7.1 - Start Date as Date Value",{"$f":"DATEVALUE(dms_060701_StartDateTxt)","v":41640},"dms_060101_StartDateVal","=DATEVALUE(dms_060701_StartDateTxt)"]
[null,"ARRs"]
[null,"How many rows in table 6.8?","insert dms_060801_StartCell NR if required",null,"dms_060801_StartCell is only found on worksheet 6.8 and is used to determine the starting date for the date range"]
[null,"Is dms_060801_StartCell named range present?","yes",null,"=IFERROR(IF((ROW(dms_060801_StartCell)-1)=1,\"yes\",\"yes\"),\"no\")"]
[null,"Table 6.8 - Number of offset rows",12,"dms_0608_OffsetRows","=IFERROR(IF(dms_Model=\"ARR\",(ROW(dms_060801_StartCell)-1),\"not an ARR\"),\"6.8 error\")"]
[null,"Table 6.8 - Last row","0","dms_0608_LastRow","=IFERROR(IF(dms_060801_StartCell<>\"\",IF(dms_Model=\"ARR\",(LOOKUP(2,1/(dms_060801_01_Values<>\"\"),(ROW(dms_060801_01_Values)))),\"not an ARR\"),0),\"0\")"]
[null,"Table 6.8 - MaxRows",{"$f":"IFERROR(IF(dms_Model=\"ARR\",(MAX(0,dms_0608_LastRow-dms_0608_OffsetRows)),\"not an ARR\"),\"0\")","v":"not an ARR"},"dms_060801_MaxRows","=IFERROR(IF(dms_Model=\"ARR\",(MAX(0,dms_0608_LastRow-dms_0608_OffsetRows)),\"not an ARR\"),\"0\")"]
[null,"TNSP RESET RINS"]
[null,"Table 7.9.4 only appears in TNSPs Reset RIN"]
[null,"Table 7.9.4 - first year",{"$f":"LEFT(PRCP_y3,4)","v":"2013"},"dms_070904_Start_Year","=LEFT(PRCP_y3,4)"]
[]
[null,"MISC"]
[null,"Distribution Determination Reference",{"$f":"INDEX(dms_DeterminationRef_List,MATCH(dms_TradingName,dms_TradingName_List))","v":"2016-20 Distribution Determination"},"dms_DeterminationRef"]
[null,"Public lighting NSP?",{"$f":"INDEX(dms_Public_Lighting_List,MATCH(dms_TradingName,dms_TradingName_List))","v":"YES"},"dms_Public_Lighting","=INDEX(dms_Public_Lighting_List,MATCH(dms_TradingName,dms_TradingName_List))"]
[null,"CBD Feeder for this business",{"$f":"INDEX(dms_CBD_flag,MATCH(dms_TradingName,dms_TradingName_List))","v":"NO"},"dms_CBD_flag_NSP"]
[null,"Urban Feeder for this business",{"$f":"INDEX(dms_Urban_flag,MATCH(dms_TradingName,dms_TradingName_List))","v":"YES"},"dms_Urban_flag_NSP"]
[null,"Short rural Feeder for this business",{"$f":"INDEX(dms_ShortRural_flag,MATCH(dms_TradingName,dms_TradingName_List))","v":"YES"},"dms_ShortRural_flag_NSP"]
[null,"Long rural Feeder for this business",{"$f":"INDEX(dms_LongRural_flag,MATCH(dms_TradingName,dms_TradingName_List))","v":"YES"},"dms_LongRural_flag_NSP"]
[null,"Fifth Feeder Category (eg. TasNetworks (D))",{"$f":"INDEX(dms_FeederType_5_flag,MATCH(dms_TradingName,dms_TradingName_List))","v":"NO"},"dms_FifthFeeder_flag_NSP","=INDEX(dms_FeederType_5_flag,MATCH(dms_TradingName,dms_TradingName_List))"]
[]
[null,"DISCARD FILES"]
[null,"discard this record?","NO","dms_DISCARD","If record is to be discarded from DB set this flag to YES"]
[]
[null,"SUBSET FILES"]
[null,"Is this Submission File a Subset File","NO","dms_Partial"]
[]
[]
[null,"REGULATORY YEARS FOR MULTI RYE SUBMISSIONS"]
[null,"Multiple RYE flag","NO","dms_Multi_RYE_flag"]
[null,null,"Manually specify RYE","Named ranges to apply"]
[null,null,2013,"dms_RYE_01"]
[null,null,2014,"dms_RYE_02"]
[null,null,2015,"dms_RYE_03"]
[null,null,2016,"dms_RYE_04"]
[null,null,2017,"dms_RYE_05"]
[null,null,2018,"dms_RYE_06"]
[null,null,2019,"dms_RYE_07"]
[null,null,2020,"dms_RYE_08"]
[null,null,2021,"dms_RYE_09"]

{"sheet":"Business & other details","index":4,"n_rows":74,"n_cols":81,"rows_kept":74,"cut":false,"hidden":false,"merged":[[0,7,2,15],[3,21,3,57],[6,21,6,75],[8,16,8,93],[15,21,15,35],[15,37,15,58],[23,21,23,35],[23,37,23,58],[23,60,23,66],[23,68,23,89],[24,21,24,35],[24,37,24,51],[24,60,24,66],[24,68,24,82],[16,21,16,35],[16,37,16,48],[22,21,22,35],[22,37,22,58],[22,60,22,66],[22,68,22,89],[31,21,31,35],[31,37,31,58],[31,60,31,66],[31,68,31,89],[32,21,32,35],[32,37,32,58],[32,60,32,66],[32,68,32,89],[25,21,25,35],[25,37,25,40],[25,49,25,51],[25,60,25,66],[25,68,25,71],[25,80,25,82],[41,79,41,86],[42,43,42,50],[42,52,42,59],[42,61,42,68],[42,70,42,77],[42,79,42,86],[33,21,33,35],[33,37,33,58],[33,60,33,66],[33,68,33,89],[41,21,49,27],[41,31,41,40],[41,43,41,50],[41,52,41,59],[41,61,41,68],[41,70,41,77],[43,43,43,50],[43,52,43,59],[43,61,43,68],[43,70,43,77],[43,79,43,86],[45,31,45,40],[45,43,45,50],[45,52,45,59],[45,61,45,68],[45,70,45,77],[49,31,49,40],[49,43,49,50],[49,52,49,59],[49,61,49,68],[49,70,49,77],[45,79,45,86],[46,43,46,50],[46,52,46,59],[46,61,46,68],[46,70,46,77],[46,79,46,86],[49,79,49,86],[50,43,50,50],[50,52,50,59],[50,61,50,68],[50,70,50,77],[50,79,50,86],[47,43,47,50],[47,52,47,59],[47,61,47,68],[47,70,47,77],[47,79,47,86],[51,43,51,50],[51,52,51,59],[51,61,51,68],[51,70,51,77],[51,79,51,86],[53,21,55,27],[53,31,53,40],[53,43,53,50],[55,31,55,40],[55,43,55,50],[69,43,71,87],[73,31,73,40],[73,43,73,58],[61,31,61,40],[61,43,61,58],[63,21,73,27],[63,31,63,40],[63,43,63,58],[65,31,65,40],[65,43,65,58],[67,31,67,40],[67,43,67,58],[69,31,71,40]]}
[null,null,null,null,null,null,null,null,null,null,null,null,null,null,null,null,null,null,null,null,null,{"$f":"INDEX(dms_Worksheet_List,MATCH(dms_Model,dms_Model_List))","v":"REGULATORY REPORTING STATEMENT"}]
[null,null,null,null,null,null,null,null,null,null,null,null,null,null,null,null,null,null,null,null,null,{"$f":"INDEX(dms_TradingNameFull_List,MATCH(dms_TradingName,dms_TradingName_List))","v":"AusNet Electricity Services Pty Ltd"}]
[null,null,null,null,null,null,null,null,null,null,null,null,null,null,null,null,null,null,null,null,null,{"$f":"dms_Header_Span","v":"2021 to 2025"}]
[null,null,null,null,null,null,null,null,null,null,null,null,null,null,null,null,null,null,null,null,null,"BUSINESS & OTHER DETAILS"]
[]
[null,null,null,null,null,null,null,null,null,null,null,null,null,null,null,null,null,null,null,null,null,"INSTRUCTIONS"]
[null,null,null,null,null,null,null,null,null,null,null,null,null,null,null,null,null,null,null,null,null,"Complete the following business details regulatory template before entering data or values in any other regulatory template. This regulatory template is linked to other cells within the spreadsheet and automatically generates column headings and conditional formatting to distinguish business specific input and non-input cells. "]
[]
[null,null,null,null,null,null,null,null,null,null,null,null,null,null,null,null,"SUBMISSION PARTICULARS INPUT SHEET"]
[]
[]
[null,null,null,null,null,null,null,null,null,null,null,null,null,null,null,null,null,null,null,null,null,"ENTITY DETAILS"]
[]
[null,null,null,null,null,null,null,null,null,null,null,null,null,null,null,null,null,null,null,null,null,"Business Name"]
[]
[null,null,null,null,null,null,null,null,null,null,null,null,null,null,null,null,null,null,null,null,null,"Short name",null,null,null,null,null,null,null,null,null,null,null,null,null,null,null,"AusNet (D)"]
[null,null,null,null,null,null,null,null,null,null,null,null,null,null,null,null,null,null,null,null,null,"ACN/ABN",null,null,null,null,null,null,null,null,null,null,null,null,null,null,null,{"$f":"INDEX(dms_ABN_List,MATCH(dms_TradingName,dms_TradingName_List))","v":91064651118}]
[]
[]
[]
[null,null,null,null,null,null,null,null,null,null,null,null,null,null,null,null,null,null,null,null,null,"Business Address",null,null,null,null,null,null,null,null,null,null,null,null,null,null,null,null,null,null,null,null,null,null,null,null,null,null,null,null,null,null,null,null,null,null,null,null,null,null,null,null,null,null,null,null,null,null,"Postal Address"]
[]
[null,null,null,null,null,null,null,null,null,null,null,null,null,null,null,null,null,null,null,null,null,"Address 1",null,null,null,null,null,null,null,null,null,null,null,null,null,null,null,{"$f":"INDEX(dms_Addr1_List,MATCH(dms_TradingName,dms_TradingName_List))","v":"Level 32"},null,null,null,null,null,null,null,null,null,null,null,null,null,null,null,null,null,null,null,null,null,null,"Address 1",null,null,null,null,null,null,null,{"$f":"INDEX(dms_Addr1_List,MATCH(dms_TradingName,dms_TradingName_List))","v":"Level 32"}]
[null,null,null,null,null,null,null,null,null,null,null,null,null,null,null,null,null,null,null,null,null,"Address 2",null,null,null,null,null,null,null,null,null,null,null,null,null,null,null,{"$f":"IF(ISBLANK(INDEX(dms_Addr2_List,MATCH(dms_TradingName,dms_TradingName_List))),\"\",(INDEX(dms_Addr2_List,MATCH(dms_TradingName,dms_TradingName_List))))","v":"2 Southbank Boulevard"},null,null,null,null,null,null,null,null,null,null,null,null,null,null,null,null,null,null,null,null,null,null,"Address 2",null,null,null,null,null,null,null,{"$f":"IF(ISBLANK(INDEX(dms_Addr2_List,MATCH(dms_TradingName,dms_TradingName_List))),\"\",(INDEX(dms_Addr2_List,MATCH(dms_TradingName,dms_TradingName_List))))","v":"2 Southbank Boulevard"}]
[null,null,null,null,null,null,null,null,null,null,null,null,null,null,null,null,null,null,null,null,null,"Suburb",null,null,null,null,null,null,null,null,null,null,null,null,null,null,null,"Southbank",null,null,null,null,null,null,null,null,null,null,null,null,null,null,null,null,null,null,null,null,null,null,"Suburb",null,null,null,null,null,null,null,"Southbank"]
[null,null,null,null,null,null,null,null,null,null,null,null,null,null,null,null,null,null,null,null,null,"State",null,null,null,null,null,null,null,null,null,null,null,null,null,null,null,{"$f":"INDEX(dms_State_List,MATCH(dms_TradingName,dms_TradingName_List))","v":"Vic"},null,null,null,null,null,null,null,null,null,"Post code",null,3006,null,null,null,null,null,null,null,null,null,null,"State",null,null,null,null,null,null,null,{"$f":"INDEX(dms_PState_List,MATCH(dms_TradingName,dms_TradingName_List))","v":"Vic"},null,null,null,null,null,null,null,null,null,"Post code",null,3006]
[]
[null,null,null,null,null,null,null,null,null,null,null,null,null,null,null,null,null,null,null,null,null,null,null,null,null,null,null,null,null,null,null,null,null,null,null,null,null,null,null,null,null,null,null,null,null,null,null,null,null,null,null,null,"`"]
[]
[null,null,null,null,null,null,null,null,null,null,null,null,null,null,null,null,null,null,null,null,null,"Contact Names"]
[]
[null,null,null,null,null,null,null,null,null,null,null,null,null,null,null,null,null,null,null,null,null,"Name",null,null,null,null,null,null,null,null,null,null,null,null,null,null,null,"Charlotte Eddy",null,null,null,null,null,null,null,null,null,null,null,null,null,null,null,null,null,null,null,null,null,null,"Name",null,null,null,null,null,null,null,"Namrata Powale"]
[null,null,null,null,null,null,null,null,null,null,null,null,null,null,null,null,null,null,null,null,null,"Phone",null,null,null,null,null,null,null,null,null,null,null,null,null,null,null,"03 9695 6309",null,null,null,null,null,null,null,null,null,null,null,null,null,null,null,null,null,null,null,null,null,null,"Phone",null,null,null,null,null,null,null,"03 9695 6968"]
[null,null,null,null,null,null,null,null,null,null,null,null,null,null,null,null,null,null,null,null,null,"Email",null,null,null,null,null,null,null,null,null,null,null,null,null,null,null,"charlotte.eddy@ausnetservices.com.au",null,null,null,null,null,null,null,null,null,null,null,null,null,null,null,null,null,null,null,null,null,null,"Email",null,null,null,null,null,null,null,"Namrata.Powale@ausnetservices.com.au"]
[]
[]
[]
[]
[null,null,null,null,null,null,null,null,null,null,null,null,null,null,null,null,null,null,null,null,null,"REGULATORY CONTROL PERIODS"]
[]
[]
[null,null,null,null,null,null,null,null,null,null,null,null,null,null,null,null,null,null,null,null,null,"RESETS",null,null,null,null,null,null,null,null,null,"Forthcoming period",null,null,null,null,null,null,null,null,null,null,null,2021,null,null,null,null,null,null,null,null,{"$f":"FRCP_y2","v":2022},null,null,null,null,null,null,null,null,{"$f":"FRCP_y3","v":2023},null,null,null,null,null,null,null,null,{"$f":"FRCP_y4","v":2024},null,null,null,null,null,null,null,null,{"$f":"FRCP_y5","v":2025}]
[null,null,null,null,null,null,null,null,null,null,null,null,null,null,null,null,null,null,null,null,null,null,null,null,null,null,null,null,null,null,null,null,null,null,null,null,null,null,null,null,null,null,null,{"$f":"FRCP_y6","v":2026},null,null,null,null,null,null,null,null,{"$f":"FRCP_y7","v":2027},null,null,null,null,null,null,null,null,{"$f":"FRCP_y8","v":2028},null,null,null,null,null,null,null,null,{"$f":"FRCP_y9","v":2029},null,null,null,null,null,null,null,null,{"$f":"FRCP_y10","v":2030}]
[null,null,null,null,null,null,null,null,null,null,null,null,null,null,null,null,null,null,null,null,null,null,null,null,null,null,null,null,null,null,null,null,null,null,null,null,null,null,null,null,null,null,null,{"$f":"FRCP_y11","v":2031},null,null,null,null,null,null,null,null,{"$f":"FRCP_y12","v":2032},null,null,null,null,null,null,null,null,{"$f":"FRCP_y13","v":2033},null,null,null,null,null,null,null,null,{"$f":"FRCP_y14","v":2034},null,null,null,null,null,null,null,null,{"$f":"FRCP_y15","v":2035}]
[]
[null,null,null,null,null,null,null,null,null,null,null,null,null,null,null,null,null,null,null,null,null,null,null,null,null,null,null,null,null,null,null,"Current period",null,null,null,null,null,null,null,null,null,null,null,{"$f":"CRCP_y1","v":2016},null,null,null,null,null,null,null,null,{"$f":"CRCP_y2","v":2017},null,null,null,null,null,null,null,null,{"$f":"CRCP_y3","v":2018},null,null,null,null,null,null,null,null,{"$f":"CRCP_y4","v":2019},null,null,null,null,null,null,null,null,{"$f":"CRCP_y5","v":2020}]
[null,null,null,null,null,null,null,null,null,null,null,null,null,null,null,null,null,null,null,null,null,null,null,null,null,null,null,null,null,null,null,null,null,null,null,null,null,null,null,null,null,null,null,{"$f":"CRCP_y6","v":2021},null,null,null,null,null,null,null,null,{"$f":"CRCP_y7","v":2022},null,null,null,null,null,null,null,null,{"$f":"CRCP_y8","v":2023},null,null,null,null,null,null,null,null,{"$f":"CRCP_y9","v":2024},null,null,null,null,null,null,null,null,{"$f":"CRCP_y10","v":2025}]
[null,null,null,null,null,null,null,null,null,null,null,null,null,null,null,null,null,null,null,null,null,null,null,null,null,null,null,null,null,null,null,null,null,null,null,null,null,null,null,null,null,null,null,{"$f":"CRCP_y11","v":2026},null,null,null,null,null,null,null,null,{"$f":"CRCP_y12","v":2027},null,null,null,null,null,null,null,null,{"$f":"CRCP_y13","v":2028},null,null,null,null,null,null,null,null,{"$f":"CRCP_y14","v":2029},null,null,null,null,null,null,null,null,{"$f":"CRCP_y15","v":2030}]
[]
[null,null,null,null,null,null,null,null,null,null,null,null,null,null,null,null,null,null,null,null,null,null,null,null,null,null,null,null,null,null,null,"Previous period",null,null,null,null,null,null,null,null,null,null,null,{"$f":"PRCP_y1","v":2011},null,null,null,null,null,null,null,null,{"$f":"PRCP_y2","v":2012},null,null,null,null,null,null,null,null,{"$f":"PRCP_y3","v":2013},null,null,null,null,null,null,null,null,{"$f":"PRCP_y4","v":2014},null,null,null,null,null,null,null,null,{"$f":"PRCP_y5","v":2015}]
[null,null,null,null,null,null,null,null,null,null,null,null,null,null,null,null,null,null,null,null,null,null,null,null,null,null,null,null,null,null,null,null,null,null,null,null,null,null,null,null,null,null,null,{"$f":"PRCP_y6","v":2016},null,null,null,null,null,null,null,null,{"$f":"PRCP_y7","v":2017},null,null,null,null,null,null,null,null,{"$f":"PRCP_y8","v":2018},null,null,null,null,null,null,null,null,{"$f":"PRCP_y9","v":2019},null,null,null,null,null,null,null,null,{"$f":"PRCP_y10","v":2020}]
[null,null,null,null,null,null,null,null,null,null,null,null,null,null,null,null,null,null,null,null,null,null,null,null,null,null,null,null,null,null,null,null,null,null,null,null,null,null,null,null,null,null,null,{"$f":"PRCP_y11","v":2021},null,null,null,null,null,null,null,null,{"$f":"PRCP_y12","v":2022},null,null,null,null,null,null,null,null,{"$f":"PRCP_y13","v":2023},null,null,null,null,null,null,null,null,{"$f":"PRCP_y14","v":2024},null,null,null,null,null,null,null,null,{"$f":"PRCP_y15","v":2025}]
[]
[null,null,null,null,null,null,null,null,null,null,null,null,null,null,null,null,null,null,null,null,null,"ANNUAL RINS",null,null,null,null,null,null,null,null,null,"Commencing year",null,null,null,null,null,null,null,null,null,null,null,2019]
[]
[null,null,null,null,null,null,null,null,null,null,null,null,null,null,null,null,null,null,null,null,null,null,null,null,null,null,null,null,null,null,null,"Final year",null,null,null,null,null,null,null,null,null,null,null,2019]
[]
[]
[]
[null,null,null,null,null,null,null,null,null,null,null,null,null,null,null,null,null,null,null,null,null,"SUBMISSION DETAILS"]
[]
[null,null,null,null,null,null,null,null,null,null,null,null,null,null,null,null,null,null,null,null,null,null,null,null,null,null,null,null,null,null,null,"RIN type",null,null,null,null,null,null,null,null,null,null,null,{"$f":"INDIRECT(dms_Model)","v":"Regulatory Reporting (Reset)"}]
[]
[null,null,null,null,null,null,null,null,null,null,null,null,null,null,null,null,null,null,null,null,null,"THIS FILE",null,null,null,null,null,null,null,null,null,"Source",null,null,null,null,null,null,null,null,null,null,null,"Regulatory proposal"]
[]
[null,null,null,null,null,null,null,null,null,null,null,null,null,null,null,null,null,null,null,null,null,null,null,null,null,null,null,null,null,null,null,"Data Quality",null,null,null,null,null,null,null,null,null,null,null,"Consolidated"]
[]
[null,null,null,null,null,null,null,null,null,null,null,null,null,null,null,null,null,null,null,null,null,null,null,null,null,null,null,null,null,null,null,"Confidentiality Status",null,null,null,null,null,null,null,null,null,null,null,"Public"]
[]
[null,null,null,null,null,null,null,null,null,null,null,null,null,null,null,null,null,null,null,null,null,null,null,null,null,null,null,null,null,null,null,"Amended RIN \nAmendment Reason",null,null,null,null,null,null,null,null,null,null,null,"."]
[]
[]
[]
[null,null,null,null,null,null,null,null,null,null,null,null,null,null,null,null,null,null,null,null,null,null,null,null,null,null,null,null,null,null,null,"Submission Date",null,null,null,null,null,null,null,null,null,null,null,"2020-01-31"]

{"sheet":"7.5 EBSS","index":5,"n_rows":92,"n_cols":29,"rows_kept":92,"cut":false,"hidden":false,"merged":[[26,14,26,15],[26,16,26,21],[39,14,39,21],[7,1,7,13],[12,2,12,11],[25,2,25,6],[25,14,25,21],[12,12,12,14],[46,23,52,24],[63,16,63,20],[63,22,63,26],[40,16,40,21],[66,14,66,15],[77,14,77,15],[78,14,78,15],[83,2,83,6],[26,7,26,12],[25,7,25,12],[39,2,39,12],[40,7,40,12],[82,2,82,6],[26,2,26,6],[71,14,71,15],[40,2,40,6],[40,14,40,15],[67,14,67,15],[68,14,68,15],[69,14,69,15],[70,14,70,15]]}
[null,{"$f":"INDEX(dms_Worksheet_List,MATCH(dms_Model,dms_Model_List))","v":"REGULATORY REPORTING STATEMENT"}]
[null,{"$f":"INDEX(dms_TradingNameFull_List,MATCH(dms_TradingName,dms_TradingName_List))","v":"AusNet Electricity Services Pty Ltd"}]
[null,{"$f":"dms_Header_Span","v":"2021 to 2025"}]
[null,"7.5 EBSS"]
[]
[null,"Intstructions"]
[null,{"$f":"CONCATENATE(dms_TradingName, \" is required to populate all input cells (yellow) in this worksheet.\")","v":"AusNet (D) is required to populate all input cells (yellow) in this worksheet."}]
[null,"\nEfficiency gains are calculated using the formulae below.  Adjusted target and actual amounts are used to calculate the carry over amounts. \n\nWe will calculate the efficiency gain in first year (n) as follows:\nEn = (Fn – An) – (Fn-1 – An-1) + (Fb – Ab)\nwhere Fn is the forecast opex we approved for the first year, and An is the actual opex incurred in the first year, and so on. The formula references the base year used to forecast opex. Actual opex in the final year of the current regulatory period should be set so that any incremental efficiency gains made after the base year sum to zero."]
[]
[]
[]
[null,"Actual and estimated inflation"]
[null,null,"Actual",null,null,null,null,null,null,null,null,null,"Estimated"]
[null,null,2009,2010,2011,2012,2013,2014,2015,2016,2017,2018,2019,2020,"HY2021"]
[null,"ABS CPI index - December (old base)",null,174,179.4]
[null,"ABS CPI index - December (rebased)",null,null,99.8,102,104.8,106.6,108.4,110,112.1,114.1,116,118.20399999999999,119.96894999999999]
[null,"Inflation rate (per cent) ",null,null,{"$f":"E15/D15-1","v":3.1034482758620641E-2},{"$f":"+F16/E16-1","v":2.2044088176352838E-2},2.7450980392156765E-2,1.7175572519083859E-2,1.6885553470919357E-2,1.4760147601476037E-2,1.9090909090909047E-2,1.7841213202497874E-2,{"$f":"+M16/L16-1","v":1.6652059596844904E-2},{"$f":"+N16/M16-1","v":1.8999999999999906E-2},{"$f":"+O16/N16-1","v":1.4931389800683537E-2}]
[null,"Reconstructed cumulative index June 2021 = 1",null,{"$f":"E18/(1+E17)","v":0.80684199221609898},{"$f":"F18/(1+F17)","v":0.83188191611246065},0.85021999442355711,0.87355936681949786,0.88856324907403117,0.90356713132856459,0.91690391555481654,0.9344084448517721,{"$f":"M18/(1+M17)","v":0.9510794251345871},{"$f":"N18/(1+N17)","v":0.96691685640326119},{"$f":"O18/(1+O17)","v":0.98528827667492302},1]
[]
[]
[]
[null,"7.5.1 -  The carryover amounts that arise from applying the EBSS during the current regulatory control period"]
[]
[null,"Base year for the previous period (drop down menu)",2014]
[null,"7.5.1.1 - Opex allowance applicable to EBSS (EBSS target)"]
[null,null,{"$f":"CONCATENATE(\"$m, real \",dms_RPTMonth,\" \",(LEFT(PRCP_y1,2)&RIGHT(PRCP_y1,2))-1)","v":"$m, real December 2010"},null,null,null,null,{"$f":"CONCATENATE(\"$m, real \",dms_RPTMonth,\" \",(LEFT(PRCP_y5,2)&RIGHT(PRCP_y5,2)))","v":"$m, real December 2015"},null,null,null,null,null,null,"$m, real June 2021"]
[null,null,"Previous period",null,null,null,null,"Current regulatory control period",null,null,null,null,null,null,"Previous period",null,"Current regulatory control period"]
[null,null,{"$f":"PRCP_y1","v":2011},{"$f":"PRCP_y2","v":2012},{"$f":"PRCP_y3","v":2013},{"$f":"PRCP_y4","v":2014},{"$f":"PRCP_y5","v":2015},{"$f":"CRCP_y1","v":2016},{"$f":"CRCP_y2","v":2017},{"$f":"CRCP_y3","v":2018},{"$f":"CRCP_y4","v":2019},{"$f":"CRCP_y5","v":2020},"HY2021",null,{"$f":"dms_PRCP_BaseYear","v":2014},{"$f":"PRCP_y5","v":2015},{"$f":"CRCP_y1","v":2016},{"$f":"CRCP_y2","v":2017},{"$f":"CRCP_y3","v":2018},{"$f":"CRCP_y4","v":2019},{"$f":"CRCP_y5","v":2020},"HY2021"]
[null,"Total opex allowance",null,null,null,179.95,182.4,225.08547496799454,229.27178923029339,234.81169554242152,239.39947380016659,244.94778584328824,null,null,{"$f":"+LOOKUP(dms_PRCP_BaseYear,C$28:G$28,C29:G29)/$D$18","v":223.03003777200954},{"$f":"+G29/$D$18","v":226.06656787782464},{"$f":"+H29/$I$18","v":249.10763922658293},253.74073633376022,259.87188710280435,264.94929430220014,271.08974790077633,0]
[null,"Approved excludable costs - allowance "]
[null,"Debt raising costs",null,null,null,-1.4,-1.49,-1.7456371682521112,-1.8261055956191223,-1.948797877515666,-2.0519557187634536,-2.1657077988960394,null,null,{"$f":"+LOOKUP(dms_PRCP_BaseYear,C$28:G$28,C31:G31)/$D$18","v":-1.7351600604657591},{"$f":"+G31/$D$18","v":-1.8467060643528439},{"$f":"H31/$I$18","v":-1.9319396508872613},-2.0209960414718702,-2.1567826118799176,-2.2709499356692513,-2.3968421645790499,0]
[null,"Self Insurance",null,null,null,-1.3,-1.3,0,0,0,0,0,null,null,-1.6112200561467767,-1.6112200561467767,0,0,0,0,0,0]
[null,"DMIA",null,null,null,-0.6,-0.6,0,0,0,0,0,null,null,-0.74364002591389677,-0.74364002591389677,0,0,0,0,0,0]
[null,"GSL",null,null,null,-3.92,-3.82,-8.3000000000000007,-8.3000000000000007,-8.3000000000000007,-8.3000000000000007,-8.3000000000000007,null,null,-4.8584481693041264,-4.7345081649851428,-9.1858144372693733,-9.1858144372693733,-9.1858144372693733,-9.1858144372693733,-9.1858144372693733,0]
[null,"Capitalisation policy changes",null,null,null,null,null,null,null,null,null,null,null,null,0,0,0,0,0,0,0,0]
[null,"Other adjustments or exclusions required by the EBSS ",null,null,null,null,null,null,null,null,null,null,null,null,0,0,0,0,0,0,0,0]
[null,"Forecast opex for EBSS purposes",{"$f":"SUM(C29:C36)","v":0},0,0,172.73,175.19,{"$f":"SUM(H29:H36)","v":215.03983779974243},219.14568363467427,224.56289766490585,229.04751808140313,234.48207804439218,0,null,{"$f":"+SUM(O29:O36)","v":214.081569460179},{"$f":"+SUM(P29:P36)","v":217.130493566426},{"$f":"+SUM(Q29:Q36)","v":237.98988513842627},242.53392585501896,248.52929005365505,253.49252992926151,259.50709129892795,0]
[]
[null,"7.5.1.2 - Actual and estimated opex applicable to EBSS"]
[null,null,"$m, Actual ",null,null,null,null,null,null,null,null,null,null,null,"$m, real June 2021"]
[null,null,"Previous period",null,null,null,null,"Current regulatory control period",null,null,null,null,null,null,"Previous period",null,"Current regulatory control period"]
[null,null,{"$f":"PRCP_y1","v":2011},{"$f":"PRCP_y2","v":2012},{"$f":"PRCP_y3","v":2013},{"$f":"PRCP_y4","v":2014},{"$f":"PRCP_y5","v":2015},{"$f":"CRCP_y1","v":2016},{"$f":"CRCP_y2","v":2017},{"$f":"CRCP_y3","v":2018},{"$f":"CRCP_y4","v":2019},{"$f":"CRCP_y5","v":2020},"HY2021",null,{"$f":"dms_PRCP_BaseYear","v":2014},{"$f":"PRCP_y5","v":2015},{"$f":"CRCP_y1","v":2016},{"$f":"CRCP_y2","v":2017},{"$f":"CRCP_y3","v":2018},{"$f":"CRCP_y4","v":2019},{"$f":"CRCP_y5","v":2020},"HY2021"]
[null,"Total opex ",null,null,null,194.755,208.739,240.51147599755791,216.72900000000001,205.57865474835609,197.36707904491485,null,null,null,{"$f":"+LOOKUP(dms_PRCP_BaseYear,C$42:G$42,C43:G43)/LOOKUP(dms_PRCP_BaseYear,C$14:N$14,C$18:N$18)*(1+LOOKUP(dms_PRCP_BaseYear,C$14:N$14,C$17:N$17))^0.5","v":221.05392490605348},{"$f":"+G43/I$18*(1+I$17)^0.5","v":232.95884956605923},{"$f":"+H43/J$18*(1+J$17)^0.5","v":264.23702902684261},{"$f":"+I43/K$18*(1+K$17)^0.5","v":234.145996277493},{"$f":"+J43/L$18*(1+L$17)^0.5","v":218.07267410780446},{"$f":"+K43/M$18*(1+M$17)^0.5","v":205.81250317894759},{"$f":"+L43/N$18*(1+N$17)^0.5","v":0},0]
[null,"Approved excludable costs"]
[null,"Debt raising costs",null,null,null,-3.4870000000000001,-2.3679999999999999,null,null,null,null,null,null,null,{"$f":"+LOOKUP(dms_PRCP_BaseYear,C$42:G$42,C45:G45)/LOOKUP(dms_PRCP_BaseYear,C$14:N$14,C$18:N$18)*(1+LOOKUP(dms_PRCP_BaseYear,C$14:N$14,C$17:N$17))^0.5","v":-3.9578703301450981},{"$f":"G45/I$18*(1+I$17)^0.5","v":-2.6427574903225},0,0,0,0,{"$f":"L45/N$18*(1+N$17)^0.5","v":0},{"$f":"M45/O$18*(1+O$17)^0.5","v":0}]
[null,"Self Insurance",null,null,null,-1.345,-10.220000000000001,null,null,null,null,null,null,null,-1.5266233421408537,-11.405819911780384,0,0,0,0,0,0]
[null,"DMIA",null,null,null,-0.06,-0.52500000000000002,-7.7478000000000005E-2,-0.26055699999999998,-0.22754099999999999,-0.22754099999999999,null,null,null,-6.8102156526729532E-2,-0.58591540642707451,-8.5120913461732617E-2,-0.2814961465797135,-0.24136977839408072,-0.23727757948519684,0,0,null,{"$f":"CONCATENATE(dms_TradingName,\" to nominate base year used to forecast opex \n(drop down menu)\")","v":"AusNet (D) to nominate base year used to forecast opex \n(drop down menu)"}]
[null,"GSL",null,null,null,-6.4039999999999999,-4.4050000000000002,-17.667649999999998,-3.4766400000000002,-6.5871000000000004,-6.3,null,null,null,{"$f":"+LOOKUP(dms_PRCP_BaseYear,C$42:G$42,C48:G48)/LOOKUP(dms_PRCP_BaseYear,C$14:N$14,C$18:N$18)*(1+LOOKUP(dms_PRCP_BaseYear,C$14:N$14,C$17:N$17))^0.5","v":-7.2687701732862644},{"$f":"G48/I$18*(1+I$17)^0.5","v":-4.9161092672595492},{"$f":"H48/J$18*(1+J$17)^0.5","v":-19.410497260153594},{"$f":"I48/K$18*(1+K$17)^0.5","v":-3.7560332788790753},{"$f":"J48/L$18*(1+L$17)^0.5","v":-6.9874302532714943},{"$f":"K48/M$18*(1+M$17)^0.5","v":-6.5695797713675343},{"$f":"L48/N$18*(1+N$17)^0.5","v":0},{"$f":"M48/O$18*(1+O$17)^0.5","v":0}]
[null,"Capitalisation policy changes",null,null,null,null,null,null,null,-4.357494,null,null,null,null,0,0,0,0,-4.6223202022208589,0,0,0]
[null,"Movements in provisions related to opex",null,null,null,null,null,-0.42218142367226602,0.58126924664361102,-0.49368699999999999,null,null,null,null,0,0,-0.46382803414592572,0.6279817969022885,-0.52369077127215991,0,0,0]
[null,"Removal of Merits review expenditure",null,null,null,null,-0.1412396158,-0.14899272669999999,-1.5661114770000002E-2,null,null,null,null,null,{"$f":"+LOOKUP(dms_PRCP_BaseYear,C$42:G$42,C51:G51)/LOOKUP(dms_PRCP_BaseYear,C$14:N$14,C$18:N$18)*(1+LOOKUP(dms_PRCP_BaseYear,C$14:N$14,C$17:N$17))^0.5","v":0},{"$f":"G51/I$18*(1+I$17)^0.5","v":-0.15762755599059208},{"$f":"H51/J$18*(1+J$17)^0.5","v":-0.16369029912824645},{"$f":"I51/K$18*(1+K$17)^0.5","v":-1.69196892000508E-2},{"$f":"J51/L$18*(1+L$17)^0.5","v":0},{"$f":"K51/M$18*(1+M$17)^0.5","v":0},{"$f":"L51/N$18*(1+N$17)^0.5","v":0},{"$f":"M51/O$18*(1+O$17)^0.5","v":0}]
[null,"Other adjustments or exclusions required by the EBSS ",null,null,null,-2.9729999999999999,-3.0910000000000002,null,null,null,null,null,null,null,-3.3744618558994484,-3.4496467071734997,0,0,0,0,0,0]
[null,"Actual opex for EBSS purposes",{"$f":"SUM(C43:C52)","v":0},0,0,180.48599999999999,187.98876038419999,{"$f":"SUM(H43:H52)","v":222.19517384718563},{"$f":"SUM(I43:I52)","v":213.55741113187361},{"$f":"SUM(J43:J52)","v":193.9128327483561},{"$f":"SUM(K43:K52)","v":190.83953804491483},null,null,null,{"$f":"O43+SUM(O45:O52)","v":204.85809704805507},{"$f":"P43+SUM(P45:P52)","v":209.80097322710563},{"$f":"Q43+SUM(Q45:Q52)","v":244.11389251995311},230.71952895973644,205.69786310264587,{"$f":"T43+SUM(T45:T52)","v":199.00564582809486},{"$f":"(U37-(LOOKUP($W$53,$Q$28:$U$28,$Q$37:$U$37)-LOOKUP($W$53,$Q$42:$U$42,$Q$53:$U$53)))+W54","v":216.67566434791877},{"$f":"V43+SUM(V45:V52)","v":0},2018]
[null,null,null,null,null,null,null,null,null,null,null,null,null,null,null,null,null,null,null,null,null,null,null,"Base year non-recurrent efficiency gain ($m)"]
[]
[]
[null,null,null,null,null,null,null,null,null,null,null,null,null,null,"Incremental gain $m, real June 2021"]
[null,null,null,null,null,null,null,null,null,null,null,null,null,null,null,{"$f":"(P37-P53)-(O37-O53)","v":-1.8939520728035575},{"$f":"IF(dms_EBSS_status=\"No\",(Q37-Q53)-(P37-P53)+IF(O28=P28,P37-P53,O37-O53),(Q37-Q53))","v":-4.2300553087232799},{"$f":"(R37-R53)-(Q37-Q53)","v":17.938404276809365},{"$f":"(S37-S53)-(R37-R53)","v":31.01703005572665},{"$f":"(T37-T53)-(S37-S53)","v":11.655457150157474},{"$f":"(U37-U53)-(T37-T53)","v":-11.655457150157474},0]
[]
[null,null,null,null,null,null,null,null,null,null,null,null,null,null,"Incremental gain for 2020 & HY2021 true up $m, real June 2021"]
[null,null,null,null,null,null,null,null,null,null,null,null,null,null,null,null,null,null,null,null,{"$f":"(U37-U54)-(LOOKUP($W$53,$Q$28:$U$28,$Q$37:$U$37)-LOOKUP($W$53,$Q$42:$U$42,$Q$53:$U$53))+W54","v":216.67566434791877},{"$f":"(V37-V53)-(U37-U54)/2","v":-129.75354564946397}]
[]
[null,null,null,null,null,null,null,null,null,null,null,null,null,null,"Carryover"]
[null,null,null,null,null,null,null,null,null,null,null,null,null,null,null,null,"Current regulatory control period",null,null,null,null,null,"Forthcoming regulatory control period"]
[null,null,null,null,null,null,null,null,null,null,null,null,null,null,null,null,"$m, real June 2021"]
[null,null,null,null,null,null,null,null,null,null,null,null,null,null,null,null,{"$f":"CRCP_y1","v":2016},{"$f":"CRCP_y2","v":2017},{"$f":"CRCP_y3","v":2018},{"$f":"CRCP_y4","v":2019},{"$f":"CRCP_y5","v":2020},"HY2021","2021-22","2022-23","2023-24","2024-25","2025-26","Total"]
[null,null,null,null,null,null,null,null,null,null,null,null,null,null,{"$f":"CRCP_y1","v":2016},null,null,{"$f":"$Q$58","v":-4.2300553087232799},{"$f":"$Q$58","v":-4.2300553087232799},{"$f":"$Q$58","v":-4.2300553087232799},{"$f":"$Q$58","v":-4.2300553087232799},{"$f":"$Q$58/2","v":-2.11502765436164},{"$f":"$Q$58/2","v":-2.11502765436164}]
[null,null,null,null,null,null,null,null,null,null,null,null,null,null,{"$f":"CRCP_y2","v":2017},null,null,null,{"$f":"$R$58","v":17.938404276809365},{"$f":"$R$58","v":17.938404276809365},{"$f":"$R$58","v":17.938404276809365},{"$f":"$R$58/2","v":8.9692021384046825},17.938404276809365,{"$f":"$R$58/2","v":8.9692021384046825}]
[null,null,null,null,null,null,null,null,null,null,null,null,null,null,{"$f":"CRCP_y3","v":2018},null,null,null,null,{"$f":"$S$58","v":31.01703005572665},{"$f":"$S$58","v":31.01703005572665},{"$f":"$S$58/2","v":15.508515027863325},{"$f":"$S$58","v":31.01703005572665},31.01703005572665,{"$f":"$S$58/2","v":15.508515027863325}]
[null,null,null,null,null,null,null,null,null,null,null,null,null,null,{"$f":"CRCP_y4","v":2019},null,null,null,null,null,{"$f":"$T$58","v":11.655457150157474},{"$f":"$T$58/2","v":5.8277285750787371},{"$f":"$T$58","v":11.655457150157474},{"$f":"$T$58","v":11.655457150157474},{"$f":"$T$58","v":11.655457150157474},{"$f":"$T$58/2","v":5.8277285750787371}]
[null,null,null,null,null,null,null,null,null,null,null,null,null,null,{"$f":"CRCP_y5","v":2020},null,null,null,null,null,null,{"$f":"$U$58/2","v":-5.8277285750787371},{"$f":"$U$58","v":-11.655457150157474},-11.655457150157474,-11.655457150157474,-11.655457150157474,{"$f":"$U$58/2","v":-5.8277285750787371}]
[null,null,null,null,null,null,null,null,null,null,null,null,null,null,"HY2021",null,null,null,null,null,null,null,{"$f":"$V$58","v":0},{"$f":"$V$58","v":0},0,0,0]
[null,null,null,null,null,null,null,null,null,null,null,null,null,null,"Total Carryover Amount ($m, June 2021)",null,null,null,null,null,null,{"$f":"-P58/2","v":0.94697603640177874},{"$f":"+SUM(W67:W72)","v":46.840406678174375},{"$f":"+SUM(X68:X72)","v":39.986232194131333},{"$f":"+SUM(Y69:Y72)","v":15.508515027863325},{"$f":"+SUM(Z70:Z72)","v":-5.8277285750787371},{"$f":"+SUM(AA71:AA72)","v":-5.8277285750787371},{"$f":"+SUM(W73:AA73)","v":90.679696750011558}]
[]
[null,null,null,null,null,null,null,null,null,null,null,null,null,null,"PTRM inputs ($m, June 2021)",null,null,null,null,null,null,{"$f":"V73","v":0.94697603640177874},46.840406678174375,39.986232194131333,15.508515027863325,-5.8277285750787371,-5.8277285750787371,{"$f":"+SUM(W75:AA75)","v":90.679696750011558}]
[]
[null,null,null,null,null,null,null,null,null,null,null,null,null,null,null,null,{"$f":"CRCP_y1","v":2016},{"$f":"CRCP_y2","v":2017},{"$f":"CRCP_y3","v":2018},{"$f":"CRCP_y4","v":2019},{"$f":"CRCP_y5","v":2020},"HY2021","2021-22","2022-23","2023-24","2024-25","2025-26","2026-27","Total"]
[null,null,null,null,null,null,null,null,null,null,null,null,null,null,"2020 true up",null,null,null,null,null,null,null,null,null,null,null,{"$f":"-U61/2","v":-108.33783217395938}]
[null,null,null,null,null,null,null,null,null,null,null,null,null,null,"HY2021 true up",null,null,null,null,null,null,null,null,null,null,null,null,{"$f":"V61","v":-129.75354564946397}]
[]
[]
[null,"7.5.2 - Proposed forecast opex for the EBSS for the forthcoming regulatory control period"]
[null,null,"Forthcoming regulatory control period"]
[null,null,"$m, real June 2021"]
[null,null,"2021-22","2022-23","2023-24","2024-25","2025-26"]
[null,"Forecast opex",239.75096545807818,243.30304311876887,246.92598802533749,250.37389756815364,253.03547083678285,{"$f":"+SUM(C86:G86)","v":1233.3893650071211}]
[null,"Less excluded costs"]
[null,"Debt raising costs",2.3147666808769332,2.346672785913642,2.3659740061786962,2.3835099137451978,2.390714575519485,{"$f":"+SUM(C88:G88)","v":11.801637962233954}]
[null,"GSL",9.3426921071936437,9.3426921071936437,9.3426921071936437,9.3426921071936437,9.3426921071936437,{"$f":"+SUM(C89:G89)","v":46.713460535968217}]
[null,"Innovation Program",0.24227586206896551,0.24227586206896551,0.24227586206896551,0.24227586206896551,0.24227586206896551,1.2113793103448276]
[null,null,null,null,null,null,null,0]
[null,"Adjusted forecast opex ($m, June 2021",{"$f":"+C86-SUM(C88:C91)","v":227.85123080793863},231.37140236359261,234.97504604989618,238.40541968514583,241.05978829200075,1173.662887198574]